Workbook

Sheet Einführung
A1: Wirtschaftlichkeitsberechnung von kleinen Erdwärmesondenanlagen in Kombination mit kleinen Solaranlagen
A3: Einführung
A5: Diese Datei stellt eine einfache Hilfe zur Berechnung der jährlichen Kosten, Energie und Umweltauswirkungen einer kleinen
A6: Wärmepumpenanlage mit Erdwärmesonden (EWS) (5-20 kW) bereit. Dabei werden 6 verschiedene Varianten berechnet:
A7: Eine Standard-Anlage, eine Anlage mit optimierter EWS (tiefer, bessere Hinterfüllung, höhere Jahresarbeitszahl),
A8: zusätzlich beide mit entweder einer thermischen Sonnenkollektorenanlage (SK) oder einer Photovoltaikanlage (PV).
A10: Die Investitionen für die Anlage werden gemäss nebenstehender Figur angenommen, können aber mit eigenen
A11: Werten ersetzt werden, falls genauere Werte bekannt sind. Hinzu kommen die Investitionen für eine thermische
A12: Sonnenkollektorenanlage (Annahme 3'000.- Fr./m2) oder eine Photovoltaikanlage (650.- Fr./m2), die Planungs- und
A13: Bewilligungsgebühren (Annahme 10'000.- Fr.) und die Baunebenkosten wie Maurer, Gärtner, etc. (5'000.- Fr.).
A14: Auch diese Werte sind nur Vorschläge und können in der Berechnung mit eigenen Werten ersetzt werden.
A15: Wird eine optimierte Erdwärmesondenanlage installiert, so werden 800.- Fr. für die Sole abgezogen, da von
A16: der Nutzung von reinem Wasser als Sondenfluid ausgegangen wird.
A18: Von den Investitionen können Subventionen (für WP und EWS, thermische Sonnenkollektorenanlage oder
A19: Photovoltaikanlage) abgezogen werden. Handelt es sich nicht um einen Neubau sondern eine Sanierung, so kann
A20: im Folgejahr ein Steuerabzug geltend gemacht werden. Dieser ist standardmässig mit 20 % der Investitionen
A21: vorgegeben. Es kann der entsprechende Grenzsteuersatz eingegeben werden, der mit den Steuerrechnern im Internet
A22: berechnet werden kann.
A23: Die totalen Investitionen abzüglich Subventionen und Steuerabzug werden nun mit einem Annuitätsfaktor multipliziert, um
A24: die Jahreskosten für Verzinsung und Abschreibung zu erhalten. Dazu werden die jährlichen Kosten für Stromverbrauch
A25: und Wartung addiert, um die totalen Jahreskosten (Fr.) und den Wärmepreis (Rp./kWh) zu berechnen. Bei den
A26: Stromkosten (ggf. Tarif für Wärmepumpen) wird eine Aufteilung von 2/3 Hochtarif und 1/3 Niedertarif angenommen.
A28: Wenn der PV-Strom verkauft wird, wird dies als ökonomisches Modell bezeichnet. Nutzen und Belastungen der PV-Anlage
A29: gehen an den Käufer. Ist die Photovoltaikanlage bei Swissgrid registriert und akzeptiert, erhält man eine kostendeckende
A30: Einspeisevergütung (KEV). Die aktuelle Höhe der Vergütung kann mit Hilfe des Swissgrid-Tarifrechners berechnet werden.
A31: Dieser kann unter https://www.guarantee-of-origin.ch/swissforms/TarifAuswahl.aspx?Language=DE aufgerufen werden.
A32: Eine Erklärung zur KEV Berechnung finden Sie hier. | E32: Eine KEV ist ab 10 kW installierter Leistung möglich.
A33: Das KEV-Modell ist momentan (April 2014) überbucht, so dass neue PV-Anlagen auf eine Warteliste gesetzt werden.
A34: Seit April 2014 kann eine Einmalvergütung für PV-Anlagen ab 2 kW bis 30 kW erhalten werden. Diese ist für PV-Anlagen ab 10 kW (Wahlmöglichkeit zwischen 10 und 30 kW) gegenüber KEV vorteilhaft, wenn das lokale EW einen attraktiven Einspeisetarif anbietet.
A35: Wenn keine KEV-Zusage vorliegt, muss beim zuständigen Stromversorger (lokales EW) der Einspeisetarif in Erfahrung gebracht werden.
A37: Wenn eine Einmalvergütung erhalten wird, darf der PV-Strom soweit möglich selbst verbraucht werden. Dies ist das ökologische Modell. Einspeisetarif und Rückliefertarif des PV-Stromüberschusses sind je nach lokalem Stromversorger unterschiedlich
A39: Anleitung zum Berechnungsmodell: 1) Klicken Sie in die Registerkarte "Heizenergiebedarf". 2) Geben Sie die geforderten Eingaben Ihres Hauses und Heizsystems bei BENUTZEREINGABEN ein. Der Wärmebedarf für die Heizung und die Warmwasseraufbereitung wird berechnet. 3) Klicken Sie in die Registerkarte "Wirtschaftlichkeit". 4) Geben Sie die verlangten Werte zu Investitionen und den Eigenschaften Ihrer geplanten/gewünschten Anlage bei BENUTZEREINGABEN ein. 5) Die Angaben, welche unter BERECHNETE ANLAGEDATEN in den orangen Kästchen erscheinen, sind berechnete sowie in der Einführung erwähnte Werte. Sie können durch Eingabe in das zugehörige blaue Kästchen ersetzt werden, wenn Ihnen genauere Angaben bekannt sind. 6) In den Registerkarten "Ökologisches Modell" und "Ökonomisches Modell" finden Sie nach Eingabe aller erforderlichen Angaben die Resultate bei den Varianten "eigene Stromnutzung" oder "Stromverkauf". 7) In der Registerkarte "Transformationspfad" sind die Varianten der Anlage in Bezug auf die Zielsetzungen der 2000-Watt-Gesellschaft und der 1 t CO2-Gesellschaft dargestellt. 8) Die Berechnungen finden in den grauen Registerkarten ("Daten", "Berechnungen zu den Diagrammen", "Berechnungsblatt Solarkollektor") statt. Zum Einblenden dieser Blätter finden sie die Schaltfläche dazu in „FAQ, Fehlerbehebung“. Im Blatt "Daten" kann ein spezieller Strommix eingegeben werden. 9) Mit der Registerkarte "Haftungsausschluss, Copyright" können Sie sich über die Rechte zur Benutzung und über die Autorenschaft informieren. In den Zellen mit den roten Ecken sind erläuternde Kommentare vorhanden, die durch Anklicken sichtbar werden. In Ihrem Excel muss bei Optionen/Add-Ins/aktive Anwendungen der Solver aktiviert sein.

Sheet Heizenergiebedarf
A1: Berechnung Wärmebedarf und Energiekennzahl
A3: BENUTZEREINGABEN | D3: Heizart auswählen… | E3: Heizanlage | G3: WW-Aufbereitung auswählen… | H3: Bautyp wählen… | I3: Haustyp auswählen… | J3: Ja
A4: Neu-/Altbau | D4: Öl | E4: Gesamter Stromverbrauch | G4: mit Heizung | H4: Neubau | I4: Einfamilienhaus | J4: Nein
A5: Wärmebedarfsberechnung vorhanden | D5: Gas | G5: elektrisch | H5: Altbau | I5: Mehrfamilienhaus
A6: Energiebezugsfläche | C6: m2 | D6: Holz
A7: Heizwärmebedarf (Qh) | C7: MJ/m2 | D7: Elektro direkt
A8: Haustyp
A9: Anzahl Personen im Haushalt
A10: Wohnfläche netto beheizt | C10: m2 | D10: wärmebedarf ww | E10: wärmebedarf heizen altbau, neubau | F10: abschätzung wärmebedarf kWh | G10: Kompaktheit wählen… | H10: Kompaktheit Zahl MFH | I10: Kompaktheit Zahl EFH | J10: Kompaktheit
A11: Kompaktheit | D11: =IF(B9<>"",B9*850,"") ->  | E11: =IF(B20<>"", IF(B14="Öl", IF(B15="mit Heizung",10*B20*0.85-B32,10*B20*0.85), IF(B14="Gas", IF(B15="mit Heizung",B20*0.85-B32,B20*0.85), IF(B14="Holz", IF(B15="mit Heizung",4.3*B20*0.8-B32,4.3*B20*0.8), IF(B14="Elektro direkt", IF(B21="Gesamter Stromverbrauch",B20-B32-G17,B20-B32),"")))),"") ->  | F11: =IF(AND(F17<>"",B33<>""), F17*B33/3.6,"") ->  | G11: Kompakt | H11: 0.8 | I11: 1.5 | J11: =IF($B$8="Einfamilienhaus",I11, IF($B$8="Mehrfamilienhaus",H11,"")) -> 
A12: Geographische Lage | E12: =IF(B5="Ja", IF(AND(B7<>"",B6<>""),B7*B6/3.6,""), IF(B5="nein", IF(F11<>"",F11,""),"")) ->  | G12: Normal | H12: 1.5 | I12: 2 | J12: =IF($B$8="Einfamilienhaus",I12, IF($B$8="Mehrfamilienhaus",H12,"")) -> 
A13: Höhe über Meer | C13: m | G13: Wenig Kompakt | H13: 2 | I13: 2.5 | J13: =IF($B$8="Einfamilienhaus",I13, IF($B$8="Mehrfamilienhaus",H13,"")) -> 
A14: Heizart bisher
A15: Warmwasseraufbereitung
A16: =IF(B$14="Öl","Ölverbrauch Jahr 1",IF(B$14="Gas","Gasverbrauch Jahr 1",IF(B$14="Holz","Holzverbrauch Jahr 1",IF(B$14="Elektro direkt","Stromverbrauch Jahr 1","")))) ->  | C16: =IF(B$14="Öl","Liter pro Jahr",IF(B$14="Gas","kWh pro Jahr",IF(B$14="Holz","kg pro Jahr",IF(B$14="Elektro direkt","kWh pro Jahr","")))) ->  | D16: Qh,li0 | E16: deltaQh,li | F16: Qh,li | G16: stromverbrauch | H16: Alpensüdseite
A17: =IF(B$14="Öl","Ölverbrauch Jahr 2",IF(B$14="Gas","Gasverbrauch Jahr 2",IF(B$14="Holz","Holzverbrauch Jahr 2",IF(B$14="Elektro direkt","Stromverbrauch Jahr 2","")))) ->  | C17: =IF(B$14="Öl","Liter pro Jahr",IF(B$14="Gas","kWh pro Jahr",IF(B$14="Holz","kg pro Jahr",IF(B$14="Elektro direkt","kWh pro Jahr","")))) ->  | D17: =IF(D20<>"", IF(B8="Einfamilienhaus",65*(1 - 0.08*D20), IF(B8="Mehrfamilienhaus",55*(1 - 0.08*D20),"")),"") ->  | E17: =IF(D20<>"",65*(1-0.08*D20),"") ->  | F17: =IF(AND(D17<>"",E17<>"",B11<>""), D17+E17*IF(B11="Kompakt",J11, IF(B11="Normal",J12, IF(B11="Wenig Kompakt",J13,""))), "") ->  | G17: =IF(B8="Einfamilienhaus",4500+(B9-2)*500,IF(B8="Mehrfamilienhaus",3500+(B9-2)*500,"")) ->  | H17: Alpennordseite
A18: =IF(B$14="Öl","Ölverbrauch Jahr 3",IF(B$14="Gas","Gasverbrauch Jahr 3",IF(B$14="Holz","Holzverbrauch Jahr 3",IF(B$14="Elektro direkt","Stromverbrauch Jahr 3","")))) ->  | C18: =IF(B$14="Öl","Liter pro Jahr",IF(B$14="Gas","kWh pro Jahr",IF(B$14="Holz","kg pro Jahr",IF(B$14="Elektro direkt","kWh pro Jahr","")))) -> 
A19: =IF(B$14="Öl","Ölverbrauch Jahr 4",IF(B$14="Gas","Gasverbrauch Jahr 4",IF(B$14="Holz","Holzverbrauch Jahr 4",IF(B$14="Elektro direkt","Stromverbrauch Jahr 4","")))) ->  | C19: =IF(B$14="Öl","Liter pro Jahr",IF(B$14="Gas","kWh pro Jahr",IF(B$14="Holz","kg pro Jahr",IF(B$14="Elektro direkt","kWh pro Jahr","")))) ->  | D19: abweichung Jahresmitteltemp. | E19: Jahresmitteltemp.
A20: =IF(B$14="Öl","Durchschnitt Ölverbrauch",IF(B$14="Gas","Durchschnitt Gasverbrauch",IF(B$14="Holz","Durchschnitt Holzverbrauch",IF(B$14="Elektro direkt","Durchschnitt Stromverbrauch","")))) ->  | B20: =IF(OR(B16<>"",B17<>"",B18<>"",B19<>""),AVERAGE(B16:B19),"") ->  | C20: =IF(B$14="Öl","Liter pro Jahr",IF(B$14="Gas","kWh pro Jahr",IF(B$14="Holz","kg pro Jahr",IF(B$14="Elektro direkt","kWh pro Jahr","")))) ->  | D20: =IF(E20<>"",E20-8.5,"") ->  | E20: =IF(B10<>"", IF(B12="Alpensüdseite",-B13*0.005+13.17, IF(B12="Alpennordseite",-B13*0.005+11.17,"")),"") -> 
A21: Verbrauchsart
A24: Bitte mit "Enter"-Taste Eingaben bestätigen.
A30: BERECHNUNG WÄRMEBEDARF | D30: n-1
A31: Wärmebedarf Heizen | B31: =IF(B4="Altbau", IF(E11<>"",E11,""), IF(B4="Neubau",IF(E12<>"",E12,""),"")) ->  | C31: kWh pro Jahr
A32: Wärmebedarf Warmwasser | B32: =IF(D11<>"",D11,"") ->  | C32: kWh pro Jahr | D32: 1
A33: Energiebezugsfläche | B33: =IF(AND(B4="Neubau",B5="Ja",B6<>""),B6, IF(B10<>"",1.15*B10,"")) ->  | C33: m2
A34: Energiekennzahl Heizen | B34: =IF(AND(B33<>0,B33<>"",B31<>""),B31/B33,"") ->  | C34: kWh/m2 pro Jahr | D34: 0
A35: Energiekennzahl Heizen | B35: =IF(AND(B33<>0,B33<>"",B31<>""),B31*3.6/B33,"") ->  | C35: MJ/m2 pro Jahr
A36: Energiekennzahl Heizen + WW | B36: =IF(AND(B33<>0,B33<>"",B32<>"",B31<>""),(B32+B31)/B33,"") ->  | C36: kWh/m2 pro Jahr | D36: 1
A39: Farblegende
A40: Erklärung | B40: Benutzereingaben | C40: Ausgabe
B42: Um eine bessere Einschätzung der Energieeffizienz des Gebäudes zu erhalten, kann kostenlos eine light-Version des Gebäudeenergieausweises der Kantone unter folgendem Link erstellt werden (19.09.12):
B46: http://www.geak.ch/Pages/Light/About/GeakLightPage.aspx
B47: Noch besser ist es, einen GEAK Plus erstellen zu lassen.

Sheet Wirtschaftlichkeit
A1: Wirtschaftlichkeitsberechnung von Erdwärmesondenanlagen in Kombination mit Solaranlagen
A3: BENUTZEREINGABEN | Y3: KEV | Z3: Angebaut
A4: Lebensdauer der Anlage | D4: Jahre | E4: Strompreis WP Hochtarif | H4: Fr./kWh | Y4: Einmalvergütung | Z4: Integriert
A5: Kapitalzinssatz | D5: % | E5: Strompreis WP Niedertarif | H5: Fr./kWh
E6: bezogener Strommix | H6: -
A7: Wärmebedarf Heizung | C7: =IF(Heizenergiebedarf!B31<>"",Heizenergiebedarf!B31,"") ->  | D7: kWh pro Jahr | E7: Rückvergütungstarif PV | H7: Fr./kWh
A8: Wärmebedarf Warmwasser | C8: =IF(Heizenergiebedarf!B32<>"",Heizenergiebedarf!B32,"") ->  | D8: kWh pro Jahr | E8: Vergügtungsstrategie PV | G8: Einmalvergütung | H8: =IF(AND(E22>=10,E22<30),G8,IF(E22<10,"Einmalvergütung","KEV")) -> Einmalvergütung | I8: ja | J8: Ja
A9: Volllaststunden | C9: 2000 | D9: h | E9: PV Anlagenart | I9: nein | J9: Nein
A10: Anzahl Erdwärmesonden (EWS) | E10: Heizungsunterstützung durch SK
E11: Saisonaler Speicher | G11: Ja
A12: =IF(ISNUMBER(E16),IF(E16<>"",IF(E16>260,"Achtung, Erdwärmesonde sehr tief, ev. Anzahl Sonden erhöhen",IF(E17>260,"Achtung, optimierte Erdwärmesonde sehr tief, ev. Anzahl Sonden erhöhen","")),""),"") -> 
A13: BERECHNETE ANLAGEDATEN | C13: =IF(C9>2600,"Leistung zu klein",IF(C9<1600,"Leistung zu gross","")) ->  | I13: EWSSTD: Standard Erdwärmesonde
A14: Total Wärmeleistung | B14: =IF(C14="",D14,C14) ->  | D14: =IF(C14<>"","",IF(AND(OR(C8<>"",C7<>""),C8<>""),IF((C7+C8)/C9>20,"zu gross",(C7+C8)/2000),"")) ->  | E14: kW | I14: EWSSTD + SK: Standard Erdwärmesonde mit thermischer Sonnenkollektoranlage
C15: JAZ | F15: Tiefe (m) | H15: Achtung, diese Tiefen sind nur eine Abschätzung und müssen gemäss der SIA- Norm 384/6 ausgelegt werden. | I15: EWSSTD + PV: Standard Erdwärmesonde mit Photovoltaikanlage
A16: Wärmepumpe (WP) mit Erdwärmesonde | B16: =IF(C16="",D16,C16) ->  | D16: =IF(C16<>"","",IF(AND(B14<>"",C10<>"",B14<>"ACHTUNG",Heizenergiebedarf!B4<>""), IF(Heizenergiebedarf!B4="Neubau",4.4,3.6),"")) ->  | E16: =IF(F16="",G16,F16) ->  | G16: =IF(F16<>"","",IF(AND(B$14<>"",C$10>0,B14<>"ACHTUNG"),B$14*1000*(1-1/B16)/(40*C$10),"")) ->  | I16: EWSOPT: Optimierte Erdwärmesonde (30 % tiefer, höhere Jahresarbeitszahl, Wasser statt Sole)
A17: Wärmepumpe mit Erdwärmesonde opt. | B17: =IF(C17="",D17,C17) ->  | D17: =IF(C17<>"","",IF(AND(B14<>"",C10<>"",B14<>"ACHTUNG",Heizenergiebedarf!B4<>""), IF(Heizenergiebedarf!B4="Neubau",5,4),"")) ->  | E17: =IF(F17="",G17,F17) ->  | G17: =IF(F17<>"","",IF(AND(B$14<>"",C$10>0,B14<>"ACHTUNG"),B$14*1000*(1-1/B17)/(40/1.3*C$10),"")) ->  | I17: EWSOPT + SK: Optimierte Erdwärmesonde mit thermischer Sonnenkollektoranlage
A18: =IFERROR("",IF(B20>5000,"Speicher zu Gross","")) ->  | C18: Fläche und Speicher | E18: =IF(F19="",G19,F19) ->  | F18: Wärmeproduktion SK (kWh) | I18: EWSOPT + PV: Optimierte Erdwärmesonde mit Photovoltaikanlage
A19: Sonnenkollektor (SK) | B19: =IF(C19="",D19,C19) ->  | D19: =IF(OR(C19<>"",E18=""),"",E18/Daten!L22) ->  | E19: m2 | G19: =IF(C8="","",IF(C19="",IF(F19<>"","",0.6*C8),IF(F19="",'Solarkollektor Modell'!C24,""))) ->  | H19: =IFERROR("",IF(E18>(C7+C8),"ACHTUNG SK zu gross","")) ->  | I19: Wärmeproduktionsangaben könne von der tatsächlichen Energie (Siehe D38, G38, resp. Tabellenblatt "Solarkollektor Modell") minimal abweichen
A20: Speichervolumen | B20: =IF(C20="",D20,C20) ->  | D20: =IF(OR(C20<>"",E19="",G11="Nein"),"",'Solarkollektor Modell'!G15) ->  | E20: l | H20: =IF(AND(C19<>"",F19<>""),"ACHTUNG nur ein parameter manuell wählbar","") -> 
A21: Photovoltaik (PV) | B21: =IF(C21="",D22,C21) -> 21 | D21: =IF(C21<>"","",E22/0.143) -> 21 | E21: m2 | F21: Leistung PV (kW)
B22: =IF(E22<3,MIN(D21,D22),MAX(D21,D22)) -> 21 | D22: =Daten!L27 -> 21 | E22: =IF(F22="",G22,F22) -> 3.003 | G22: =IF(F22<>"","",IF(F24<>"",F24/950,B21*0.143)) -> 3.003 | H22: =IF(AND(F22<>"",OR(F24<>"",C21<>"")),"ACHTUNG nur ein parameter manuell wählbar","") ->  | J22: Berechnungsstatus 1: | K22: =IF(ABS(C7-'Berechnungsblatt Solarkollektor'!K18)>1,"Berechnung durchführen","OK") -> 
B23: =IF(C32<>"","",IF(AND(B21<>"",B14<>"ACHTUNG",B14<>""),IF(E22<3,MIN(B22,B22),MAX(B22,B21)))) -> FALSE | F23: Stromproduktion PV (kWh) | H23: =IF(AND(F24<>"",OR(F22<>"",C21<>"")),"ACHTUNG nur ein parameter manuell wählbar","") ->  | J23: Berechnungsstatus 2: | K23: =IF('Solarkollektor Modell'!G27>14,"Bitte genaue Berechnung Durchführen","OK, genauere Berechnung nicht nötig") -> Bitte genaue Berechnung Durchführen
E24: =IF(F24="",G24,F24) -> 2852.85 | G24: =IF(F24<>"","",E22*950) -> 2852.85
C25: Investitionskosten (Fr.) | F25: Wartungskosten/Jahr (Fr.)
A26: WP / EWS-Anlage | B26: =IF(C26="",D26,C26) ->  | D26: =IF(C26<>"","",IF(AND(E16<>"",E16<>0),C10*E16*70+C10*2500+17000+15000+500*$B$14,"")) ->  | E26: =IF(F26="",G26,F26) ->  | G26: =IF(F26<>"","",IF(B26<>"",Daten!L26,"")) -> 
A27: WP / EWS-Anlage optimiert | B27: =IF(C27="",D27,C27) ->  | D27: =IF(C27<>"","",IF(AND(E17<>"",E17<>0),C10*E17*76+C10*2500+17000+15000+500*$B$14-(C10*800),"")) ->  | E27: =IF(F27="",G27,F27) ->  | G27: =IF(F27<>"","",IF(B27<>"",Daten!L26,"")) -> 
A28: WP/ EWS Subventionen
A29: Thermischer Sonnenkollektor | B29: =IF(C29="",D29,C29) ->  | D29: =IF(C29<>"","",IF(AND(B19<>"",B14<>"ACHTUNG",B14<>""),B19*Daten!L24,"")) ->  | E29: =IF(F29="",G29,F29) -> 200 | G29: =IF(F29="",IF(B19<>0,Daten!L23,0),"") -> 200
A30: Therm. Sonnenkollektor Subventionen
A32: Photovoltaikanlage | B32: =IF(C32="",D32,C32) -> FALSE | D32: =IF(C32<>"","", IF(AND(B21<>"",B14<>"ACHTUNG",B14<>""),IF(G9="Angebaut",(-31.05*E22^2+4470.5*E22)/2.095*1.64,(-29.15*E22^2+5372.5*E22)/2.095*1.64))) -> FALSE | E32: =IF(F32="",G32,F32) -> 171.171 | G32: =IF(F32<>"","",IF(B32<>"",E24*0.06,"")) -> 171.171 | I32: Betriebs- und Unterhaltskosten nach BFE 6 Rp./kWh (für Anlagen kleiner als 100 kW)
A33: Photovoltaik Subventionen | B33: =IF(C33="",D33,C33) -> FALSE | D33: =IF(C33<>"","", IF(OR(E22<2,E22>=30),0, IF(AND(E22>=2,E22<=10),IF(G9="Angebaut",Daten!L35+Daten!L36*Wirtschaftlichkeit!E22, IF(Wirtschaftlichkeit!G9="Integriert",Daten!L37+Daten!L38*Wirtschaftlichkeit!E22)), IF(AND(E22>10,E22<=30), IF(OR(G8="KEV",G8="Einmalvergütung"),IF(G9="Angebaut",Daten!L35+Daten!L36*Wirtschaftlichkeit!E22, IF(Wirtschaftlichkeit!G9="Integriert",Daten!L37+Daten!L38*Wirtschaftlichkeit!E22)) ))))) -> FALSE
A34: Planung, Bewilligung | B34: =IF(C34="",D34,C34) ->  | D34: =IF(C34<>"","",IF(B26<>"",Daten!L31,"")) -> 
A35: Maurer, Gärtner, …. | B35: =IF(C35="",D35,C35) ->  | D35: =IF(C35<>"","",IF(B26<>"",Daten!L32,"")) -> 
A36: Steuerabzug falls Sanierung | B36: =IF(C36="",D36,C36) ->  | D36: =IF(Heizenergiebedarf!B4 = "Neubau",0, IF(C36<>"","",IF(AND(B14<>"",B14<>0),20,""))) ->  | E36: %
A38: ENERGIEBILANZ (kWh pro Jahr)
C39: EWSSTD | D39: EWSSTD + SK | E39: EWSSTD + PV | F39: EWSOPT | G39: EWSOPT + SK | H39: EWSOPT + PV
A40: Totaler Wärmebedarf | C40: =$C$8+$C$7 -> 
A41: - Wärmeproduktion Solar | C41: =IF(AND($B$14<>"",B14<>0),0,"") ->  | D41: ='Solarkollektor Modell'!C24 ->  | E41: =IF(AND(B21<>"",B14<>"ACHTUNG",B14<>"",B14<>0),0,"") ->  | F41: =IF(AND($B$14<>"",B14<>0),0,"") ->  | G41: ='Solarkollektor Modell'!C24 ->  | H41: =IF(AND(B21<>"",B14<>"ACHTUNG",B14<>"",B14<>0),0,"") -> 
A42: Wärmeproduktion EWS-Anlage | C42: =IF(C40="","",C40-C41) ->  | D42: =IF(OR(D40="",D41=""),"",D40-D41) ->  | E42: =IF(OR(E40="",E41=""),"",E40-E41) ->  | F42: =IF(F40="","",F40-F41) ->  | G42: =IF(OR(G40="",G41=""),"",G40-G41) ->  | H42: =IF(OR(H40="",H41=""),"",H40-H41) -> 
A43: - Wärmeentzug Boden | C43: =IF(AND(Wirtschaftlichkeit!$B$14<>"",$B$14<>0,$B$16<>"",$B$14<>"ACHTUNG"),ROUND((C42)*(1-1/$B$16),0),"") ->  | D43: =IF(AND(Wirtschaftlichkeit!$B$14<>"",$B$14<>0,$B$16<>"",$B$14<>"ACHTUNG",D42<>""),ROUND((D42)*(1-1/$B$16),0),"") ->  | E43: =IF(AND(Wirtschaftlichkeit!$B$14<>"",$B$14<>0,$B$16<>"",$B$14<>"ACHTUNG",E42<>""),ROUND((E42)*(1-1/$B$16),0),"") ->  | F43: =IF(AND(Wirtschaftlichkeit!$B$14<>"",$B$14<>0,$B$17<>"",$B$14<>"ACHTUNG"),ROUND((F42)*(1-1/$B$17),0),"") ->  | G43: =IF(AND(Wirtschaftlichkeit!$B$14<>"",$B$14<>0,$B$17<>"",$B$14<>"ACHTUNG",G42<>""),ROUND((G42)*(1-1/$B$17),0),"") ->  | H43: =IF(AND(Wirtschaftlichkeit!$B$14<>"",$B$14<>0,$B$17<>"",$B$14<>"ACHTUNG",H42<>""),ROUND((H42)*(1-1/$B$17),0),"") -> 
A44: Strombedarf WP | C44: =IF(C42="","",C42-C43) -> 
A45: Ökologisches Modell (Eigenverbrauch des PV-Stromes)
A46: - Strombezug aus PV | C46: =IF(C40="","",0) ->  | D46: =IF(D40="","",0) ->  | E46: =IF(Wirtschaftlichkeit!E24*0.3>=E44,E44,E24*0.3) ->  | F46: =IF(F40="","",0) ->  | G46: =IF(G40="","",0) ->  | H46: =IF(Wirtschaftlichkeit!E24*0.3>=H44,H44,E24*0.3) -> 
A47: Strombezug aus dem öff. Netz | C47: =IF(C44="","",C44-C46) ->  | D47: =IF(D44="","",D44-D46) ->  | E47: =IF(E44="","",IF(E24*0.3<=E44,E44-E46,-(E24-E44))) ->  | F47: =IF(F44="","",F44-F46) ->  | G47: =IF(G44="","",G44-G46) ->  | H47: =IF(H44="","",IF(E24*0.3<=H44,H44-H46,-(E24-H44))) -> 
A48: Stromüberschuss aus PV (Rückspeisung) | E48: =E24-E46 ->  | H48: =E24-H46 -> 
A50: JAHRESKOSTENRECHNUNG (Ökologisches Modell, Eigenverbrauch) | J50: Ökonomisches Modell (Verkauf PV-Strom mit KEV)
C51: EWSSTD | D51: EWSSTD + SK | E51: EWSSTD + PV | F51: EWSOPT | G51: EWSOPT + SK | H51: EWSOPT + PV | J51: EWSSTD + PV | K51: EWSOPT + PV
A52: Annuitätsfaktor | C52: =IF(Wirtschaftlichkeit!$B$26<>"",IF(AND(Wirtschaftlichkeit!$C$5<>"",Wirtschaftlichkeit!$C$4<>""),IF($C$5=0,"Kapitalzinssatz eingeben!",(Wirtschaftlichkeit!$C$5/100)/(1-(1/(1+Wirtschaftlichkeit!$C$5/100)^Wirtschaftlichkeit!$C$4))),""),"") ->  | D52: =IF(Wirtschaftlichkeit!$B$26<>"",IF(AND(Wirtschaftlichkeit!$C$5<>"",Wirtschaftlichkeit!$C$4<>"",B19<>""),IF($C$5=0,"eingeben!",(Wirtschaftlichkeit!$C$5/100)/(1-(1/(1+Wirtschaftlichkeit!$C$5/100)^Wirtschaftlichkeit!$C$4))),""),"") ->  | E52: =IF(Wirtschaftlichkeit!$B$26<>"",IF(AND(Wirtschaftlichkeit!$C$5<>"",Wirtschaftlichkeit!$C$4<>"",B21<>""),IF($C$5=0,"",(Wirtschaftlichkeit!$C$5/100)/(1-(1/(1+Wirtschaftlichkeit!$C$5/100)^Wirtschaftlichkeit!$C$4))),""),"") ->  | F52: =IF(Wirtschaftlichkeit!$B$26<>"",IF(AND(Wirtschaftlichkeit!$C$5<>"",Wirtschaftlichkeit!$C$4<>""),IF($C$5=0,"",(Wirtschaftlichkeit!$C$5/100)/(1-(1/(1+Wirtschaftlichkeit!$C$5/100)^Wirtschaftlichkeit!$C$4))),""),"") ->  | G52: =IF(Wirtschaftlichkeit!$B$26<>"",IF(AND(Wirtschaftlichkeit!$C$5<>"",Wirtschaftlichkeit!$C$4<>"",B19<>""),IF($C$5=0,"",(Wirtschaftlichkeit!$C$5/100)/(1-(1/(1+Wirtschaftlichkeit!$C$5/100)^Wirtschaftlichkeit!$C$4))),""),"") ->  | H52: =IF(Wirtschaftlichkeit!$B$26<>"",IF(AND(Wirtschaftlichkeit!$C$5<>"",Wirtschaftlichkeit!$C$4<>"",B21<>""),IF($C$5=0,"",(Wirtschaftlichkeit!$C$5/100)/(1-(1/(1+Wirtschaftlichkeit!$C$5/100)^Wirtschaftlichkeit!$C$4))),""),"") ->  | J52: =IF(OR(E22<10,G8="Einmalvergütung"),0,E52) -> 0 | K52: =IF(OR(E22<10,G8="Einmalvergütung"),0,H52) -> 0
A53: Investition einmalig (Fr.) | C53: =IF(Wirtschaftlichkeit!B26<>"",(Wirtschaftlichkeit!B26+Wirtschaftlichkeit!B34+Wirtschaftlichkeit!B35-Wirtschaftlichkeit!C28)*(1-Wirtschaftlichkeit!B36/(100*(1+C5/100))),"") ->  | D53: =IF(Wirtschaftlichkeit!B26<>"",IF(AND(Wirtschaftlichkeit!B19<>""),(B26+B29+B34+B35-C28-C30+C31)*(1-Wirtschaftlichkeit!B36/(100*(1+C5/100))),""),"") ->  | E53: =IF(Wirtschaftlichkeit!B26<>"",IF(Wirtschaftlichkeit!B32<>"",(B26+B32+B34+B35-C28-B33)*(1-Wirtschaftlichkeit!B36/(100*(1+C5/100))),""),"") ->  | F53: =IF(Wirtschaftlichkeit!B26<>"",(Wirtschaftlichkeit!B27+Wirtschaftlichkeit!B34+Wirtschaftlichkeit!B35-Wirtschaftlichkeit!C28-800)*(1-Wirtschaftlichkeit!B36/(100*(1+C5/100))),"") ->  | G53: =IF(Wirtschaftlichkeit!B26<>"",IF(AND(Wirtschaftlichkeit!B19<>""),(B27+B34+B35+B29-C28-C30-800+C31)*(1-Wirtschaftlichkeit!B36/(100*(1+C5/100))),""),"") ->  | H53: =IF(Wirtschaftlichkeit!B26<>"",IF(Wirtschaftlichkeit!B32<>"",(B27+B32+B34+B35-C28-B33-800)*(1-Wirtschaftlichkeit!B36/(100*(1+C5/100))),""),"") ->  | J53: =IF(J52=0,0,IF(Wirtschaftlichkeit!B26<>"",IF(Wirtschaftlichkeit!B32<>"",(B26+B32+B34+B35-C28)*(1-Wirtschaftlichkeit!B36/(100*(1+C5/100))),""),"")) -> 0 | K53: =IF(K52=0,0,IF(Wirtschaftlichkeit!B26<>"",IF(Wirtschaftlichkeit!B32<>"",(B27+B32+B34+B35-C28-800)*(1-Wirtschaftlichkeit!B36/(100*(1+C5/100))),""),"")) -> 0
A54: Stromkosten jährlich (Fr.) | C54: =IF(AND(AND(Wirtschaftlichkeit!$G$5<>"",Wirtschaftlichkeit!$G$4<>""),C47<>""),C47*((1*Wirtschaftlichkeit!$G$5/3)+(2*Wirtschaftlichkeit!$G$4/3)),"") ->  | D54: =IF(AND(AND(Wirtschaftlichkeit!$G$5<>"",Wirtschaftlichkeit!$G$4<>""),D47<>""),D47*((1*Wirtschaftlichkeit!$G$5/3)+(2*Wirtschaftlichkeit!$G$4/3)),"") ->  | E54: =IF(AND(Wirtschaftlichkeit!$G$5<>"",Wirtschaftlichkeit!$G$4<>"",E47<>""),IF(E47<0,0,E47*((1/3*Wirtschaftlichkeit!$G$5)+(2/3*Wirtschaftlichkeit!$G$4))),"") ->  | F54: =IF(AND(AND(Wirtschaftlichkeit!$G$5<>"",Wirtschaftlichkeit!$G$4<>""),F47<>""),F47*((1*Wirtschaftlichkeit!$G$5/3)+(2*Wirtschaftlichkeit!$G$4/3)),"") ->  | G54: =IF(AND(AND(Wirtschaftlichkeit!$G$5<>"",Wirtschaftlichkeit!$G$4<>""),G47<>""),G47*((1*Wirtschaftlichkeit!$G$5/3)+(2*Wirtschaftlichkeit!$G$4/3)),"") ->  | H54: =IF(AND(Wirtschaftlichkeit!$G$5<>"",Wirtschaftlichkeit!$G$4<>"",H47<>""),IF(H47<0,0,H47*((1/3*Wirtschaftlichkeit!$G$5)+(2/3*Wirtschaftlichkeit!$G$4))),"") ->  | J54: =IF(J52=0,0,IF(AND(Wirtschaftlichkeit!$G$5<>"",Wirtschaftlichkeit!$G$4<>"",E44<>""),IF(E44<0,"Fehler",E44*((1/3*Wirtschaftlichkeit!$G$5)+(2/3*Wirtschaftlichkeit!$G$4))),"")) -> 0 | K54: =IF(K52=0,0,IF(AND(Wirtschaftlichkeit!$G$5<>"",Wirtschaftlichkeit!$G$4<>"",H44<>""),IF(H44<0,"Fehler",H44*((1/3*Wirtschaftlichkeit!$G$5)+(2/3*Wirtschaftlichkeit!$G$4))),"")) -> 0
A55: Jährl. Ertrag Photovoltaik (Fr.) | C55: =IF(AND(Wirtschaftlichkeit!B26<>"",C44<>""),0,"") ->  | D55: =IF(AND(Wirtschaftlichkeit!B26<>"",B19<>""),0,"") ->  | E55: =IF(E52="","",IF(E47>0,-E24*0.7*G7,-(E24-E44)*G7)) ->  | F55: =C55 ->  | G55: =D55 ->  | H55: =IF(H52="","",IF(H47>0,-E24*0.7*G7,-(E24-H44)*G7)) ->  | J55: =IF(J52=0,0,IF(E54="","",IF(G8="KEV",IF(G9="Angebaut",-E24*0.264,-E24*0.304)))) -> 0 | K55: =IF(K52=0,0,IF(E54="","",IF(G8="KEV",IF(G9="Angebaut",-E24*0.264,-E24*0.304)))) -> 0
A56: Wartungskosten jährlich (Fr.) | C56: =Wirtschaftlichkeit!E26 ->  | D56: =IF(AND(Wirtschaftlichkeit!E26<>"",Wirtschaftlichkeit!E29<>""),Wirtschaftlichkeit!E26+Wirtschaftlichkeit!E29,"") ->  | E56: =IF(AND(Wirtschaftlichkeit!E26<>"",Wirtschaftlichkeit!E32<>""),Wirtschaftlichkeit!E26+Wirtschaftlichkeit!E32,"") ->  | F56: =Wirtschaftlichkeit!E27 ->  | G56: =IF(AND(Wirtschaftlichkeit!E27<>"",Wirtschaftlichkeit!E29<>""),Wirtschaftlichkeit!E27+Wirtschaftlichkeit!E29,"") ->  | H56: =IF(AND(Wirtschaftlichkeit!E27<>"",Wirtschaftlichkeit!E32<>""),Wirtschaftlichkeit!E27+Wirtschaftlichkeit!E32,"") ->  | J56: =IF(J52=0,0,IF(AND(Wirtschaftlichkeit!E26<>"",Wirtschaftlichkeit!E32<>""),Wirtschaftlichkeit!E26+Wirtschaftlichkeit!E32,"")) -> 0 | K56: =IF(K52=0,0,IF(AND(Wirtschaftlichkeit!E27<>"",Wirtschaftlichkeit!E32<>""),Wirtschaftlichkeit!E27+Wirtschaftlichkeit!E32,"")) -> 0
A57: Total Jahreskosten (Fr.) | C57: =IF(AND(AND(C52<>"",C53<>""),AND(C54<>"",C56<>"")),IF(OR($C$5=0,C5=""),"Kapitalzinssatz",C52*C53+C54+C56+C55),"") ->  | D57: =IF(AND(AND(D52<>"",D53<>""),AND(D54<>"",D56<>"")),IF($C$5=0,"eingeben!",D52*D53+D54+D56+D55),"") ->  | E57: =IF(AND(E52<>"",E53<>"",E54<>"",E55<>"",E56<>""),E52*E53+E54+E55+E56,"") ->  | F57: =IF(AND(F52<>"",F53<>"",F54<>"",F55<>"",F56<>""),F52*F53+F54+F55+F56,"") ->  | G57: =IF(AND(G52<>"",G53<>"",G54<>"",G55<>"",G56<>""),G52*G53+G54+G55+G56,"") ->  | H57: =IF(AND(H52<>"",H53<>"",H54<>"",H55<>"",H56<>""),H52*H53+H54+H55+H56,"") ->  | J57: =IF(AND(J52<>"",J53<>"",J54<>"",J55<>"",J56<>""),J52*J53+J54+J55+J56,"") -> 0 | K57: =IF(AND(K52<>"",K53<>"",K54<>"",K55<>"",K56<>""),K52*K53+K54+K55+K56,"") -> 0
A58: Betriebskosten pro Monat (Fr.) | C58: =IF(C57<>"",(C54+C56)/12,"") ->  | D58: =IF(D57<>"",(D54+D56)/12,"") ->  | E58: =IF(E57<>"",(E54+E56+E55)/12,"") ->  | F58: =IF(F57<>"",(F54+F56)/12,"") ->  | G58: =IF(G57<>"",(G54+G56)/12,"") ->  | H58: =IF(H57<>"",(H54+H56+H55)/12,"") ->  | J58: =IF(J57<>"",(J54+J56+J55)/12,"") -> 0 | K58: =IF(K57<>"",(K54+K56+K55)/12,"") -> 0
A59: Gestehungskosten Wärme (Rp./kWh) | C59: =IF(AND(C57<>"",C57<>"Kapitalzinssatz",OR(Wirtschaftlichkeit!$C$7<>"",Wirtschaftlichkeit!$C$8<>"")),100*C57/(B14*C9),"") ->  | D59: =IF(AND(AND(C57<>"",C57<>"Kapitalzinssatz",B19<>""),OR(Wirtschaftlichkeit!$C$7<>"",Wirtschaftlichkeit!$C$8<>"")),100*D57/(B14*C9),"") ->  | E59: =IF(AND(E57<>"",OR(Wirtschaftlichkeit!$C$7<>"",Wirtschaftlichkeit!$C$8<>"")),100*E57/(B14*C9),"") ->  | F59: =IF(AND(F57<>"",OR(Wirtschaftlichkeit!$C$7<>"",Wirtschaftlichkeit!$C$8<>"")),100*F57/(B14*C9),"") ->  | G59: =IF(AND(G57<>"",OR(Wirtschaftlichkeit!$C$7<>"",Wirtschaftlichkeit!$C$8<>"")),100*G57/(B14*C9),"") ->  | H59: =IF(AND(H57<>"",OR(Wirtschaftlichkeit!$C$7<>"",Wirtschaftlichkeit!$C$8<>"")),100*H57/(B14*C9),"") ->  | J59: =IF(AND(J57<>"",OR(Wirtschaftlichkeit!$C$7<>"",Wirtschaftlichkeit!$C$8<>"")),100*J57/(B14*C9),"") ->  | K59: =IF(AND(K57<>"",OR(Wirtschaftlichkeit!$C$7<>"",Wirtschaftlichkeit!$C$8<>"")),100*K57/(B14*C9),"") -> 
A60: Mehrkosten ggü. günstigster Variante (%) | C60: =IF(C57<>"",ABS(100*(C57/MIN($C$57:$H$57))-100),"") -> 
B66: Druckdatum: | D66: =TODAY() -> 2014-12-10

Sheet Ökologisches Modell
A2: Wirtschaftlichkeit
L6: Kommentar zum Diagramm Kostenrechnung Im vorliegenden Diargramm werden die Jahreskosten der sechs Varianten aufgezeigt. Die Kosten, welche durch den Strombezug aus dem öffentlichen Netz entstehen, sind dabei als Energiekosten vermerkt. Die Wartungskosten werden aus der Tabelle Anlagedaten übernommen. Die Verzinsung und die Abschreibungen werden über die Annuitätenmethode berechnet.
A35: Energiebilanz
L39: Kommentar zum Diagramm Strombilanz der Wärmeerzeugung und Solaranlage pro Jahr In diesem Diagramm wird der vom Netz bezogene Strom dargestellt (Endenergie). Ein negativer Strombezug bedeutet, dass im betrachteten System mehr Strom produziert als verbraucht wird. Folglich kann diese Menge für andere Zwecke im Gebäude genutzt werden oder sie wird in das Netz zurück gespiesen. Es wird die Bilanz über ein Jahr gezeigt, der PV-Stromertrag vom Sommer wird dabei zum Teil ans Netz abgegeben und wird im Winter wieder vom Netz bezogen. Verluste, die eventuell mit dieser virtuellen Speicherung im Netz verbunden sind, werden nicht mit berechnet.
L64: Kommentar zum Diagramm Primärenergieverbrauch In diesem Diagramm werden die Primärenergiewerte der Energiebilanz der verschiedenen Varianten dargestellt. Diese sind vom gewählten Strommix abhängig. Ebenso ist die graue Energie enthalten, die in den hier betrachteten Anlagen steckt und über die Lebensdauer abgeschrieben wird.
L80: Strommix gewählt: | N80: =Wirtschaftlichkeit!G6 -> 0
A86: Umweltbelastung
L90: Kommentar zum Diagramm Treibhausgas-Emissionen In diesem Diagramm werden die Treibhausgasemissionen (THG) in als äquivalente CO2-Emissionen in kg pro Jahr dargestellt. Die THG hängen vom gewählten Strommix ab. Ebenso sind die grauen THG berücksichtigt, die in den hier betrachteten Anlagen stecken und über die Lebensdauer abgeschrieben werden.
L110: Strommix gewählt: | N110: =Wirtschaftlichkeit!G6 -> 0
L114: Kommentar zum Diagramm Umweltbelastung In diesem Diagramm wird die Umweltbelastung mit Hilfe der Umweltbelastungspunkte (UBP) dargestellt. Dabei wird die Belastung durch den bezogenen Strom vom Netz als UBP Strom aufgezeigt. Der Balken UBP Technik Gebäude zeigt hingegen die Umweltbelastung, welche durch die hier betrachteten Anlagen verursacht wird. Diese wird über die Lebensdauer der Anlagen abgeschrieben.

Sheet Ökonomisches Modell (KEV) (hidden)
A2: Wirtschaftlichkeit
L6: Kommentar zum Diagramm Kostenrechnung Im vorliegenden Diargramm werden die Jahreskosten der sechs Varianten aufgezeigt. Die Kosten, welche durch den Strombezug aus dem öffentlichen Netz entstehen, sind dabei als Energiekosten vermerkt. Die Wartungskosten werden aus der Tabelle Anlagedaten übernommen. Die Verzinsung und die Abschreibungen werden über die Annuitätenmethode berechnet.
A35: Energiebilanz
L39: Kommentar zum Diagramm Strombilanz der Wärmeerzeugung und Solaranlage pro Jahr In diesem Diagramm wird blau der vom Netz bezogene Strom für die Wärmeerzeugung dargestellt (Endenergie). Der rote Balken zeigt den erzeugten PV-Strom, der verkauft wird.
L64: Kommentar zum Diagramm Primärenergieverbrauch In diesem Diagramm werden die Primärenergiewerte der Energiebilanz dargestellt. Diese sind vom gewählten Strommix abhängig. Ebenso ist die graue Energie enthalten, die in den hier betrachteten Anlagen steckt und über die Lebensdauer abgeschrieben wird. Separat wird der Primärenergieverbrauch der PV-Anlage, inkl. grauer Primärnenergie pro Jahr, dargestellt.
L80: Strommix gewählt: | N80: =Wirtschaftlichkeit!G6 -> 0
A86: Umweltbelastung
L90: Kommentar zum Diagramm Treibhausgas-Emissionen In diesem Diagramm werden die Treibhausgasemissionen (THG) in als äquivalente CO2-Emissionen in kg pro Jahr dargestellt. Die THG hängen vom gewählten Strommix ab. Ebenso sind die grauen THG berücksichtigt, die in den hier betrachteten Anlagen stecken und über die Lebensdauer abgeschrieben werden. Separat werden wiederum die der PV-Stromproduktion anzulastenden grauen THG-Emissionen aufgezeigt.
L110: Strommix gewählt: | N110: =Wirtschaftlichkeit!G6 -> 0
L114: Kommentar zum Diagramm Umweltbelastung In diesem Diagramm wird die Umweltbelastung mit Hilfe der Umweltbelastungspunkte (UBP) dargestellt. Dabei wird die Belastung durch den bezogenen Strom vom Netz als UBP Strom aufgezeigt. Der Balken UBP Technik Gebäude zeigt hingegen die Umweltbelastung, welche durch die hier betrachteten Anlagen verursacht wird. Diese wird über die Lebensdauer der Anlagen abgeschrieben.

Sheet Transformationspfad
A1: Ausgewählter Strommix: | C1: =Wirtschaftlichkeit!G6 -> 0
K2: Kommentar zum Diagramm Transformationspfad Das Diagramm Transformationspfad zeigt auf der Abzisse die jährliche Umwelt-belastung in Form der verbrauchten Primärenergie pro Quadratmeter Energie-bezugsfläche (EBF). Der Durchschnitt der Schweiz liegt bei 180 kWh pro Quadratmeter EBF. Die Ordinate zeigt die spezifischen Treibhausgas-Emissionen (THG) pro Kilowattstunde Primärenergie. Des Weiteren können mit Hilfe der Trendlinien die absoluten Werte der Treibhausgas-Emissionen pro Person abgelesen werden. Es ist zu beachten, dass hier nur die THG-Emissionen der Wärmeerzeugung erfasst werden. Die Energiebezugsfläche pro Person wird aufgrund der Eingabe berechnet. Der durchschnittlichen Wohnflächenverbrauch pro Kopf beträgt 60 m2 pro Person.
A3: Modell: | C3: Ökologische Betrachtung
K17: Energiebezugsfläche pro Person: | O17: =Heizenergiebedarf!B33/Heizenergiebedarf!B9 ->  | P17: m2
K21: Kommentar zum Diagramm Primärenergieverbrauch Die Grafik zeigt die jährliche Umweltbelastung in Form der verbrauchten Primär-energie pro Person sowie des Treibhausgasausstosses (THG) in CO2-Äquivalenten pro Person. Zum Vergleich sind weiter die beiden Ziele der "2000 Watt" sowie der "1 t CO2-Gesellschaft" grün eingezeichnet. Da der Primärenergiebedarf für Heizung und Warmwasser aber nur einen Teil des totalen Energie- und CO2-Budgets ausmacht, müssen diese Werte entsprechend angepasst werden. Nur ein Teil darf für den Wärmeverbrauch budgetiert werden. Dieser Anteil des Primärenergieverbrauches bzw. der totalen Treibhausgasemissionen am gesamten Primärenergieverbrauch bzw. am gesamten Treibhausgasausstoss kann unten festgelegt werden.
K36: Anteil des Wärmeverbrauchs am Gesamt-Primär- energieverbrauch einer Person von max. 2000 W. | O36: 165 | P36: W
K39: Anteil des Wärmeverbrauchs an den gesamten THG-Emissionen einer Person von max. 1 t CO2. | O39: 200 | P39: kg
K43: Farblegende
K44: Erklärung | N44: Benutzereingaben | P44: Ausgabe

Sheet Solarkollektor Modell
B2: Effizienzberechnung Solarkollektoren für Warmwasser und Heizungsunterstützung:
B5: Randbedingungen
B7: Wärmeleistung Heizung | C7: =Wirtschaftlichkeit!B14 ->  | D7: kW | G7: Abw: | H7: =ABS(C7-'Berechnungsblatt Solarkollektor'!J19) -> 
B8: Wärmebedarf Heizung | C8: =Wirtschaftlichkeit!C7 ->  | D8: kWh pro Jahr | G8: Abw: | H8: =ABS(C8-'Berechnungsblatt Solarkollektor'!K18) -> 
B9: Fläche SK | C9: =Wirtschaftlichkeit!B19 ->  | D9: m2
B10: Anzahl Personen | C10: =Heizenergiebedarf!B9 -> 0
B11: Heiztage pro Jahr | C11: 160 | D11: Tage | F11: Gesamter Wärmebedarf | G11: ='Berechnungsblatt Solarkollektor'!C12 ->  | H11: kWh
B13: Heizungsunterstützung | C13: =Wirtschaftlichkeit!G10 -> 0 | J13: OK
B14: Speicher | C14: Ja | K14: <- Status
B15: Speichervolumen | C15: =Wirtschaftlichkeit!B20 ->  | D15: l | F15: Maximale Grösse Speicher | G15: ='Berechnungsblatt Solarkollektor'!C11 ->  | H15: l
B18: Ergebnisse
B20: Heizungsunterstützung direkt | C20: ='Berechnungsblatt Solarkollektor'!G3 ->  | D20: kWh pro Jahr | E20: ='Berechnungsblatt Solarkollektor'!I3 ->  | F20: % Deckungsgrad (Wärmebedarf Heizung)
B21: Warmwasserunterstützung direkt | C21: ='Berechnungsblatt Solarkollektor'!G4 ->  | D21: kWh pro Jahr | E21: ='Berechnungsblatt Solarkollektor'!I4 ->  | F21: % Deckungsgrad (Wärmebedarf Warmwasser)
B22: Unterstützung Speicher | C22: ='Berechnungsblatt Solarkollektor'!G5 ->  | D22: kWh pro Jahr | E22: ='Berechnungsblatt Solarkollektor'!I5 ->  | F22: % Deckungsgrad (von totalem Wärmebedarf)
B24: Wärmeunterstützung Total | C24: ='Berechnungsblatt Solarkollektor'!G6 ->  | D24: kWh pro Jahr | E24: ='Berechnungsblatt Solarkollektor'!I6 ->  | F24: % Deckungsgrad total
B26: Überschussstunden SK eff. (ev. für Speicher) | C26: ='Berechnungsblatt Solarkollektor'!G8 -> 24 | D26: Stunden | E26: ='Berechnungsblatt Solarkollektor'!H8 -> 1 | F26: Tage
B27: Heizzstunden Berechnung | C27: ='Berechnungsblatt Solarkollektor'!G9 -> 0 | D27: Stunden | E27: ='Berechnungsblatt Solarkollektor'!H9 -> 0 | F27: Tage | G27: =ABS(C11-E27) -> 160 | H27: Tage differenz
B30: Grafik

Sheet FAQ, Fehlerbehebung
A3: FAQ
A5: Frage: Wie erhalte ich Zugriff auf die Berechnungsdatenblätter?
A6: Antwort: Durch ein Klick auf folgende Schaltfläche
A14: Fehlerbehandlung
A16: Problem: Ich erhalte beim Ausführen eines Makros einen Laufzeitfehler
A17: Lösung: Aktivieren Sie den Excel-Solver auf Ihrem Gerät. Je nach Office-Version ist das Vorgehen ein wenig anders. Informationen dazu erhalten Sie z.B. unter
A18: http://office.microsoft.com/de-ch/excel-help/laden-des-solver-add-ins-HP010342660.aspx | B18: Excel 2010
A19: http://office.microsoft.com/de-ch/excel-help/laden-des-solver-add-ins-HP010021570.aspx | B19: Excel 2007
A20: http://support.microsoft.com/kb/2431349 | B20: Excel 2011 (Mac)
A33: Wädenswil, April 2014

Sheet Haftungsausschluss, Copyright
A3: Haftungsausschluss
A5: Dieses Berechnungswerkzeug wurde sorgfältig, unter Nutzung anerkannter Methoden und nach bestem Wissen erstellt.
A6: Die Anwendung und Nutzung dieser Rechenhilfe erfolgt in der alleinigen Verantwortung des Nutzers.
A7: Alle zugrunde liegenden Zahlenwerte müssen bei jeder Anwendung überprüft und ggf. korrekt eingegeben werden (hellblaue Zellen).
A8: Der Anwender ist für die korrekte Eingabe der fallweise zutreffenden Zahlenwerte selbst verantwortlich.
A9: Die Anwendung und Nutzung dieser Rechenhilfe ersetzt nicht eine fachgerechte Planung einer Anlage.
A11: Die ZHAW resp. der Autor übernehmen keine Gewähr für die Richtigkeit der vorgegebenen Defaultwerte (lachsrote Zellen).
A12: Die ZHAW resp. der Autor übernehmen keinerlei Haftung für sämtliche Folgen, die aus der Anwendung dieser Rechenhilfe resultieren können.
A14: Copyright
A16: Das Copyright für dieses Berechnungswerkzeug liegt bei der ZHAW, Institut für Facility Management, Prof. M. Hubbuch, CH-8822 Wädenswil
A18: Dieses Berechnungswerkzeug darf ohne Gebühr heruntergeladen, gespeichert und genutzt werden.
A19: Dieses Berechnungswerkzeug darf nicht auf anderen Homepages oder über jedwelche anderen Kanäle weiter verteilt oder angeboten werden.
A20: Dieses Berechnungswerkzeug darf nicht gegen Entgeld genutzt, angeboten oder verkauft werden.
A21: Dieses Berechnungswerkzeug darf nicht verändert werden.
A23: Alle weiteren Rechte sind vorbehalten.
A25: Autorenschaft
A27: Dieses Tool wurde im Rahmen des Projektes Optimierung von Erdwärmesonden erarbeitet: www.erdsondenoptimierung.ch
A29: Zürcher Hochschule für Angewandte Wissenschaften (ZHAW)
A30: Institut für Facility Management
A31: Prof. Markus Hubbuch und Mitarbeitende
A33: Wädenswil, April 2014

Sheet Daten (hidden)
A1: Ausgangssituation
A2: Heizart | B2: =Heizenergiebedarf!B14 -> 0 | C2: -
A3: Jährlicher Bedarf | B3: =Heizenergiebedarf!B20 ->  | C3: l | K3: Tabelle Energieträger
A4: Brennwert | B4: =IF(B2="","",VLOOKUP(B2,K6:P18,5,FALSE)*B3) ->  | C4: kWh | K4: Typ | L4: Primärenergiefaktor [-] | M4: THG [kg/kWh] Endenergie | N4: Umweltbeastungspunkte pro kWh Endenergie [UBP'06] | O4: Brennwert in kWh pro Einheit der Rechnung | P4: Primärenergifaktor nicht erneuerbar
A5: PE Heizung | B5: =IF(B2="","",VLOOKUP(B2,K6:P18,2,FALSE)*B4) ->  | C5: kWh
A6: Energie WW | B6: =Heizenergiebedarf!B32 ->  | C6: kWh | K6: Öl | L6: 1.24 | M6: 0.2988 | N6: 159.84 | O6: 10.421
A7: Primärenergie WW | B7: =IF(Heizenergiebedarf!B15="mit Heizung", B6*(Daten!B5/Daten!B4),B6*B27) ->  | C7: kWh | K7: Gas | L7: 1.12 | M7: 0.2376 | N7: 113.4 | O7: 1
A8: PE tot | B8: =B7+B5 ->  | C8: kWh | K8: Stückholz | L8: 1.06 | M8: 0.0144 | N8: 99.36 | O8: 4.658
A9: THG Heizung | B9: =IF(B4="","",IF(B2=K6, B4*M6,IF(B2=K7, B4*M7,IF(B2=K8, B4*M8,IF(B2=K9, B4*M9,IF(B2=K10, B4*M10,IF(B2=K11, B4*M11,IF(B2=K12, B4*M12,IF(B2=K13, B4*M13,IF(B2=K14, B4*M14,IF(B2=K15, B4*M15,IF(B2=K16, B4*M16,IF(B2=K17, B4*M17,""))))))))))))) ->  | C9: kg | K9: Holzschnitzel | L9: 1.14 | M9: 0.0108 | N9: 97.56 | O9: 5.075
A10: THG WW | B10: =IF(Heizenergiebedarf!B15="mit Heizung",Daten!B6*(Daten!B9/Daten!B4),Daten!B6*Daten!B30) ->  | C10: kg | K10: Pellets | L10: 1.22 | M10: 0.036 | N10: 100.08 | O10: 5.111
A11: THG tot | B11: =B10+B9 ->  | C11: kg | K11: Biogas | L11: 0.4 | M11: 0.162 | N11: 119.52 | O11: 1
A12: UBP ohne WW | B12: =IF(B4="","",IF(B2=K6, B4*N6,IF(B2=K7, B4*N7,IF(B2=K8, B4*N8,IF(B2=K9, B4*N9,IF(B2=K10, B4*N10,IF(B2=K11, B4*N11,IF(B2=K12, B4*N12,IF(B2=K13, B4*N13,IF(B2=K14, B4*N14,IF(B2=K15, B4*N15,IF(B2=K16, B4*N16,IF(B2=K17, B4*N17,""))))))))))))) ->  | C12: UBP'06 | K12: Fernwärme | L12: 0.85 | M12: 0.162 | N12: 89.28 | O12: 1
A13: UBP WW | B13: =IF(Heizenergiebedarf!B15="mit Heizung",Daten!B6*(Daten!B12/Daten!B4),Daten!B6*Daten!B32) ->  | K13: Strom Schweiz | L13: 3.05 | M13: 0.1476 | N13: 450.72 | O13: 1 | P13: 2.63
A14: UBP tot | B14: =B13+B12 ->  | K14: Strom Europa | L14: 3.54 | M14: 0.594 | N14: 639 | O14: 1 | P14: 3.32
A15: Energiebezugsfläche (EBF) | B15: =Heizenergiebedarf!B33 ->  | C15: m2 | K15: Strom CH-Wasser | L15: 1.22 | M15: =0.00351*3.6 -> 0.012636 | N15: 61.92 | O15: 1 | P15: 0.0348
A16: # Personen | B16: =Heizenergiebedarf!B9 -> 0 | C16: - | K16: Strom spez. Mix | L16: 0 | M16: 0 | N16: 0 | O16: 1
A17: Spez. EBFn pro Person | B17: =IF(OR(B15="",B16=""),60,B15/B16) -> 60 | C17: m2 | K17: Strom PV | L17: 1.39 | M17: =0.0202*3.6 -> 0.07272 | N17: =30.2*3.6 -> 108.72 | O17: 1 | P17: 0.278
K18: Strom GUD | L18: 2.34 | M18: =3.6*0.135 -> 0.486 | N18: =3.6*73.8 -> 265.68 | O18: 1 | P18: 2.33
A19: Berechnungen 1
A20: Inputs vor Renovation | K20: Weitere Daten
A21: PE pro m2 | B21: =B8/B15 ->  | C21: [kWh/m2]
A22: THG pro PE | B22: =B11/B8 ->  | C22: [kg/kWh] | K22: Wärmeproduktion SK | L22: 390 | M22: kWh/m2 pro Jahr und
A23: PE pro Kopf | B23: =B8/B16 ->  | C23: [kWh] | K23: Wartungskosten Thermische SK | L23: 200 | M23: CHF
A24: THG pro Kopf | B24: =B9/B16 ->  | C24: [kg] | K24: Investitionskosten SK | L24: 3000 | M24: CHF/m2
A25: Inputs nach Renovation | K25: Volllaststunden PV | L25: 950 | M25: h
A26: Welche Stromart soll ersetzt werden | B26: =Wirtschaftlichkeit!G6 -> 0 | K26: Jährliche Wartungskosten WP/EWS | L26: 400 | M26: CHF
A27: Primärenergiefaktor | B27: =VLOOKUP(B26,K6:P18,2,FALSE) ->  | K27: Standartfläche Photovoltaik | L27: 21 | M27: m2
A28: PEF nicht erneuerbar | B28: =VLOOKUP(B26,K6:P18,6,FALSE) ->  | K28: Investitionskosten PV | L28: 650 | M28: CHF/m2
A29: THG spez. [kg/kWh] Primärenergie | B29: =B30/B27 -> 
A30: THG Spez [kg/kWh] Endenergie | B30: =VLOOKUP(B26,K6:P18,3,FALSE) -> 
A31: UBP spez. Pro kWh PE | B31: =B32/B27 ->  | F31: Diese Daten werden dann im Tabellenblatt "Berechnungen zu den Diagrammen" verwendet. | K31: Planung, Bewilligung | L31: 10000 | M31: CHF
A32: UBP spez. Pro kWh EE | B32: =VLOOKUP(B26,K6:P18,4,FALSE) ->  | K32: Maurer, Gärtner, …. | L32: 5000 | M32: CHF
A35: =(39+70+118+166+201+216+222+192+135+79+43+30+126)*30.5*24/1000 -> 1198.284 | B35: kWh/m2 pro Jahr | D35: =200*8760 -> 1752000 | K35: Grundbeitrag PV Anlage freistehend | L35: 1400 | M35: CHF
K36: Leostungsbeitrag freistehende Anlag | L36: 850 | M36: CHF/kW
K37: Grundbeitrag PV Anlage integriert | L37: 1800 | M37: CHF
K38: Leistungsbeitrag inegrierte Anlage | L38: 1050 | M38: CHF/kW
A40: In diesem Bereich werde Zahlen für die Diagramme bereit gestellt.
A44: Daten für Diagramm Transformationspfad | I44: 10 | K44: Die angestrebten Ziele:
C45: v1 | D45: v2 | E45: v3 | F45: v4 | G45: v5 | H45: v6 | I45: 20 | K45: 2000 Watt Gesellschaft: | L45: =M50*2*8760 -> 1445.4 | M45: =L45 -> 1445.4
A46: Netto Strom | C46: =IF(Wirtschaftlichkeit!C47="",NA(),Wirtschaftlichkeit!C47) ->  | D46: =IF(Wirtschaftlichkeit!D47="",NA(),Wirtschaftlichkeit!D47) ->  | E46: =IF(Wirtschaftlichkeit!E47="",NA(),Wirtschaftlichkeit!E47) ->  | F46: =IF(Wirtschaftlichkeit!F47="",NA(),Wirtschaftlichkeit!F47) ->  | G46: =IF(Wirtschaftlichkeit!G47="",NA(),Wirtschaftlichkeit!G47) ->  | H46: =IF(Wirtschaftlichkeit!H47="",NA(),Wirtschaftlichkeit!H47) ->  | I46: 30 | K46: y-koordinaten | L46: =IF(MIN(C54:H54)<0,MIN(C54:H54),0) ->  | M46: =IF(Heizenergiebedarf!B4="Neubau",MAX(C54:H54)*2,IF(MAX(B24,C54:H54)*1.1=0,1000,MAX(B24,C54:H54)*1.1)) -> 
A47: Primärenergie | C47: =C$46*$B27 ->  | I47: 40 | K47: 1t CO2 Gesellschaft | L47: =M51*1000 -> 200 | M47: =L47 -> 200
A48: THG tot | C48: =C$46*$B$30 ->  | I48: 50 | K48: x-koordinaten | L48: =IF(MIN(C53:H53)<0,MIN(C53:H53),0) ->  | M48: =IF(Heizenergiebedarf!B4="Neubau",IF(MAX(C53:H53)*1.1=0,2000,MAX(C53:H53)*1.1),IF(MAX(B23,C53:H53)*1.1=0,2000,MAX(B23,C53:H53)*1.1)) -> 
A49: PE pro m2 | C49: =C47/$B$15 ->  | I49: 60 | K49: Annahme:
I50: 70 | K50: energy usage in buildings | M50: =Transformationspfad!$O$36/2000 -> 0.0825
A51: Daten für Diagramm 2 | I51: 80 | K51: CO2 emissions in buildings | M51: =Transformationspfad!$O$39/1000 -> 0.2
C52: v1 | D52: v2 | E52: v3 | F52: v4 | G52: v5 | H52: v6 | I52: 90
A53: PE pro Kopf | C53: =C47/$B$16 ->  | I53: 100
A54: CO2/Kopf | C54: =C48/$B$16 -> 
A56: Daten für die Isolinien Transformationspfad
A57: x | B57: 250 | C57: 500 | D57: 1000 | E57: 2000 | F57: 3000 | G57: 4000
A58: Personen spezifische EBF = | F58: =Daten!B17 -> 60 | G58: m2
A59: 1 | B59: =B$57/($A59*$F$58) -> 4.166666667 | C59: 8.333333333 | D59: 16.66666667 | E59: 33.33333333 | F59: 50 | G59: 66.66666667
A60: 50 | B60: 0.08333333333 | C60: 0.1666666667 | D60: 0.3333333333 | E60: 0.6666666667 | F60: 1 | G60: 1.333333333
A61: 100 | B61: 0.04166666667 | C61: 0.08333333333 | D61: 0.1666666667 | E61: 0.3333333333 | F61: 0.5 | G61: 0.6666666667
A62: =IF(OR('Berechnungen zu den Diagrammen'!B30="",'Berechnungen zu den Diagrammen'!B31=""),200,IF(MAX(Daten!B21,Daten!C49:H49)=0,200,MAX(Daten!B21,Daten!C49:H49)*1.1)) -> 200 | B62: 0.02083333333 | C62: 0.04166666667 | D62: 0.08333333333 | E62: 0.1666666667 | F62: 0.25 | G62: 0.3333333333

Sheet Berechnungen zu den Diagrammen (hidden)
A3: =Wirtschaftlichkeit!A3 -> BENUTZEREINGABEN | B3: =Wirtschaftlichkeit!B3 -> 0 | C3: =Wirtschaftlichkeit!C3 -> 0 | D3: =Wirtschaftlichkeit!D3 -> 0 | E3: =Wirtschaftlichkeit!E3 -> 0 | F3: =Wirtschaftlichkeit!F3 -> 0 | G3: =Wirtschaftlichkeit!G3 -> 0 | H3: =Wirtschaftlichkeit!H3 -> 0
A4: =Wirtschaftlichkeit!A4 -> Lebensdauer der Anlage | C4: =Wirtschaftlichkeit!C4 -> 0 | D4: =Wirtschaftlichkeit!D4 -> Jahre | E4: =Wirtschaftlichkeit!E4 -> Strompreis WP Hochtarif | G4: =Wirtschaftlichkeit!G4 -> 0 | H4: =Wirtschaftlichkeit!H4 -> Fr./kWh
A5: =Wirtschaftlichkeit!A5 -> Kapitalzinssatz | C5: =Wirtschaftlichkeit!C5 -> 0 | D5: =Wirtschaftlichkeit!D5 -> % | E5: =Wirtschaftlichkeit!E5 -> Strompreis WP Niedertarif | G5: =Wirtschaftlichkeit!G5 -> 0 | H5: =Wirtschaftlichkeit!H5 -> Fr./kWh
A6: =Wirtschaftlichkeit!A7 -> Wärmebedarf Heizung | C6: =Wirtschaftlichkeit!C7 ->  | D6: =Wirtschaftlichkeit!D7 -> kWh pro Jahr | E6: =Wirtschaftlichkeit!E6 -> bezogener Strommix | G6: =Wirtschaftlichkeit!G6 -> 0 | H6: =Wirtschaftlichkeit!H6 -> -
A7: =Wirtschaftlichkeit!A8 -> Wärmebedarf Warmwasser | C7: =Wirtschaftlichkeit!C8 ->  | D7: =Wirtschaftlichkeit!D8 -> kWh pro Jahr | E7: =Wirtschaftlichkeit!E7 -> Rückvergütungstarif PV | G7: =Wirtschaftlichkeit!G7 -> 0 | H7: =Wirtschaftlichkeit!H7 -> Fr./kWh
A8: =Wirtschaftlichkeit!A9 -> Volllaststunden | C8: =Wirtschaftlichkeit!C9 -> 2000 | D8: =Wirtschaftlichkeit!D9 -> h
A9: =Wirtschaftlichkeit!A10 -> Anzahl Erdwärmesonden (EWS) | C9: =Wirtschaftlichkeit!C10 -> 0
A11: =Wirtschaftlichkeit!A13 -> BERECHNETE ANLAGEDATEN
A12: =Wirtschaftlichkeit!A14 -> Total Wärmeleistung | B12: =Wirtschaftlichkeit!B14 ->  | C12: =Wirtschaftlichkeit!C14 -> 0 | D12: =Wirtschaftlichkeit!D14 ->  | E12: =Wirtschaftlichkeit!E14 -> kW | F12: =Wirtschaftlichkeit!E16 ->  | G12: =Wirtschaftlichkeit!E17 -> 
C13: =Wirtschaftlichkeit!C15 -> JAZ | E13: =Wirtschaftlichkeit!E15 -> 0 | F13: =Wirtschaftlichkeit!F15 -> Tiefe (m)
A14: =Wirtschaftlichkeit!A16 -> Wärmepumpe (WP) mit Erdwärmesonde | B14: =Wirtschaftlichkeit!B16 ->  | C14: =Wirtschaftlichkeit!C16 -> 0 | D14: =Wirtschaftlichkeit!D16 ->  | E14: =Wirtschaftlichkeit!E16 ->  | F14: =Wirtschaftlichkeit!F16 -> 0 | G14: =Wirtschaftlichkeit!G16 -> 
A15: =Wirtschaftlichkeit!A17 -> Wärmepumpe mit Erdwärmesonde opt. | B15: =Wirtschaftlichkeit!B17 ->  | C15: =Wirtschaftlichkeit!C17 -> 0 | D15: =Wirtschaftlichkeit!D17 ->  | E15: =Wirtschaftlichkeit!E17 ->  | F15: =Wirtschaftlichkeit!F17 -> 0 | G15: =Wirtschaftlichkeit!G17 -> 
C16: =Wirtschaftlichkeit!C18 -> Fläche und Speicher | F16: =Wirtschaftlichkeit!F18 -> Wärmeproduktion SK (kWh) | J16: Reine Spiegelung von "Wirtschaftlichkeit". Dies soll die folgenden Formeln vereinfachen, indem die Verweise nicht zu lange werden.
A17: =Wirtschaftlichkeit!A19 -> Sonnenkollektor (SK) | B17: =Wirtschaftlichkeit!B19 ->  | C17: =Wirtschaftlichkeit!C19 -> 0 | D17: =Wirtschaftlichkeit!D19 ->  | E17: =Wirtschaftlichkeit!E19 -> m2 | F17: =Wirtschaftlichkeit!F19 -> 0 | G17: =Wirtschaftlichkeit!G19 -> 
A18: =Wirtschaftlichkeit!A21 -> Photovoltaik (PV) | B18: =Wirtschaftlichkeit!B21 -> 21 | C18: =Wirtschaftlichkeit!C9=Wirtschaftlichkeit!C21 -> FALSE | D18: =Wirtschaftlichkeit!D21 -> 21 | E18: =Wirtschaftlichkeit!E21 -> m2 | F18: =Wirtschaftlichkeit!F21 -> Leistung PV (kW)
E19: =Wirtschaftlichkeit!E22 -> 3.003 | F19: =Wirtschaftlichkeit!F22 -> 0 | G19: =Wirtschaftlichkeit!G22 -> 3.003
F20: Stromproduktion PV
E21: =Wirtschaftlichkeit!E24 -> 2852.85 | F21: =Wirtschaftlichkeit!F24 -> 0 | G21: =Wirtschaftlichkeit!G24 -> 2852.85
B22: =Wirtschaftlichkeit!B25 -> 0 | C22: =Wirtschaftlichkeit!C25 -> Investitionskosten (Fr.) | F22: =Wirtschaftlichkeit!F25 -> Wartungskosten/Jahr (Fr.)
A23: =Wirtschaftlichkeit!A26 -> WP / EWS-Anlage | B23: =Wirtschaftlichkeit!B26 ->  | C23: =Wirtschaftlichkeit!C26 -> 0 | D23: =Wirtschaftlichkeit!D26 ->  | E23: =Wirtschaftlichkeit!E26 ->  | F23: =Wirtschaftlichkeit!F26 -> 0 | G23: =Wirtschaftlichkeit!G26 -> 
A24: =Wirtschaftlichkeit!A27 -> WP / EWS-Anlage optimiert | B24: =Wirtschaftlichkeit!B27 ->  | C24: =Wirtschaftlichkeit!C27 -> 0 | D24: =Wirtschaftlichkeit!D27 ->  | E24: =Wirtschaftlichkeit!E27 ->  | F24: =Wirtschaftlichkeit!F27 -> 0 | G24: =Wirtschaftlichkeit!G27 -> 
A25: =Wirtschaftlichkeit!A28 -> WP/ EWS Subventionen | B25: =Wirtschaftlichkeit!B28 -> 0 | C25: =Wirtschaftlichkeit!C28 -> 0 | E25: =Wirtschaftlichkeit!E28 -> 0
A26: =Wirtschaftlichkeit!A29 -> Thermischer Sonnenkollektor | B26: =Wirtschaftlichkeit!B29 ->  | C26: =Wirtschaftlichkeit!C29 -> 0 | D26: =Wirtschaftlichkeit!D29 ->  | E26: =Wirtschaftlichkeit!E29 -> 200 | F26: =Wirtschaftlichkeit!F29 -> 0 | G26: =Wirtschaftlichkeit!G29 -> 200
A27: =Wirtschaftlichkeit!A30 -> Therm. Sonnenkollektor Subventionen | B27: =Wirtschaftlichkeit!B30 -> 0 | C27: =Wirtschaftlichkeit!C30 -> 0 | E27: =Wirtschaftlichkeit!E30 -> 0
A28: =Wirtschaftlichkeit!A32 -> Photovoltaikanlage | B28: =Wirtschaftlichkeit!B32 -> FALSE | C28: =Wirtschaftlichkeit!C32 -> 0 | D28: =Wirtschaftlichkeit!D32 -> FALSE | E28: =Wirtschaftlichkeit!E32 -> 171.171 | F28: =Wirtschaftlichkeit!F32 -> 0 | G28: =Wirtschaftlichkeit!G32 -> 171.171
A29: =Wirtschaftlichkeit!A33 -> Photovoltaik Subventionen | B29: =Wirtschaftlichkeit!B33 -> FALSE | C29: =Wirtschaftlichkeit!C33 -> 0
A30: =Wirtschaftlichkeit!A34 -> Planung, Bewilligung | B30: =Wirtschaftlichkeit!B34 ->  | C30: =Wirtschaftlichkeit!C34 -> 0 | D30: =Wirtschaftlichkeit!D34 -> 
A31: =Wirtschaftlichkeit!A35 -> Maurer, Gärtner, …. | B31: =Wirtschaftlichkeit!B35 ->  | C31: =Wirtschaftlichkeit!C35 -> 0 | D31: =Wirtschaftlichkeit!D35 -> 
A32: =Wirtschaftlichkeit!A36 -> Steuerabzug falls Sanierung | B32: =Wirtschaftlichkeit!B36 ->  | C32: =Wirtschaftlichkeit!C36 -> 0 | D32: =Wirtschaftlichkeit!D36 ->  | E32: =Wirtschaftlichkeit!E36 -> %
A35: Diese Werte sind für einige simple if-Bedingungen in den Abschnitten "Ökologie" und "Ökonomie".
A37: Einfamilienhaus | B37: Mehrfamilienhaus
A39: BENUTZEREINGABEN
A40: Neu-/Altbau | B40: =Heizenergiebedarf!B4 -> 0
A41: Wärmebedarfsberechnung vorhanden | B41: =Heizenergiebedarf!B5 -> 0
A42: Energiebezugsfläche | B42: =Heizenergiebedarf!B6 -> 0 | C42: m2
A43: Heizwärmebedarf (Qh) | B43: =Heizenergiebedarf!B7 -> 0 | C43: MJ/m2 | E43: Reine Spiegelung von "Heizenergiebedarf. Dies soll die folgenden Formeln vereinfachen, indem die Verweise nicht zu lange werden.
A44: Haustyp | B44: =Heizenergiebedarf!B8 -> 0
A45: Anzahl Personen im Haushalt | B45: =Heizenergiebedarf!B9 -> 0
A46: Wohnfläche netto beheizt | B46: =Heizenergiebedarf!B10 -> 0 | C46: m
A47: Kompaktheit | B47: =Heizenergiebedarf!B11 -> 0
A48: Geographische Lage | B48: =Heizenergiebedarf!B12 -> 0
A49: Höhe über Meer | B49: =Heizenergiebedarf!B13 -> 0 | C49: m2
A50: Heizart bisher | B50: =Heizenergiebedarf!B14 -> 0
A52: Wärmebedarf | B52: =IF(Heizenergiebedarf!B31="","",Heizenergiebedarf!B31+Heizenergiebedarf!B32) ->  | C52: kWh
A53: Energiebezugsfläche | B53: =Heizenergiebedarf!$B$33 ->  | C53: m2
A54: Spez. Leistungsbedarf | B54: =IF(OR(B53="",B52=""),"",B52/C8*1000/B53) ->  | C54: W/m2
A55: JAZ standard | B55: =B14 ->  | C55: -
A56: JAZ opt. | B56: =B15 -> 
A57: PV Peak Leistung | B57: =E19 -> 3.003 | C57: kW
A58: Strom-Mix | B58: =Daten!B26 -> 0
A59: Primärenergiefaktor Strom | B59: =Daten!B27 ->  | C59: -
A60: Primärenergiefaktor Strom nicht erneuerbar | B60: =Daten!B28 ->  | C60: -
A61: UBP Strom pro kWh PE | B61: =Daten!B31 ->  | C61: -
A62: THG Strom pro kWh PE | B62: =Daten!B29 ->  | C62: kg
A63: Primärenergiefaktor PV-Strom | B63: 1.39
A64: Primärenergiefaktor PV-Strom (n.e) | B64: 0.278
A65: UBP PV-Strom pro kWh EE | B65: =30.2*3.6 -> 108.72
A66: THG PV-Strom pro kWh EE | B66: =0.0202*3.6 -> 0.07272 | E66: Spezifische Daten aus der KBOB Liste. Quelle: http://www.eco-bau.ch/resources/uploads/KBOB_Empfehlung_2009_Juli_2012.pdf, abgerufen am 27.3.2013
A67: Systemeffizienz Erdwärme | B67: 1 | C67: -
A68: Systemeffizienz Sonnenwärme | B68: 1.124 | C68: -
A69: Systemeffizienz Sonnenstrom | B69: 1.069 | C69: -
A73: Bezeichnung | B73: Graue Energie [MJ] | C73: UBP | D73: THG [kg] | E73: Graue Energie nicht erneuerbar [MJ] | F73: Bezugsgrösse | G73: Einheit
A74: Erdsonden | B74: 6.93 | C74: 436.7 | D74: 0.381 | E74: 6.86 | F74: EBF und spez. Leistungsbedarf | G74: m2 und W/m2
A75: Flachkollektoren für Warmwasser EFH | B75: 5060 | C75: 639000 | D75: 289 | E75: 4520 | F75: Kollektorfläche | G75: m2
A76: Flachkollektoren für Warmwasser MFH | B76: 2900 | C76: 357000 | D76: 169 | E76: 2600 | F76: Kollektorfläche | G76: m2
A77: Solarstromanlage Schrägdach | B77: 31300 | C77: 2890000 | D77: 2010 | E77: 27700 | F77: Peak Leistung | G77: kW
A78: Wärmeerzeuger | B78: 0.942 | C78: 110 | D78: 0.0535 | E78: 0.878 | F78: EBF und spez. Leistungsbedarf | G78: m2 und W/m2
A85: In den folgenden beiden Tabellen finden die Berechnungen statt. Unter "Ökologisch" wird der Ansatz behandelt, bei welchem der produzierte Strom soweit wie möglich selber verwendet wird. Unter "Ökonomisch" wird hingegen der Ansatz berechnet, bei welchem der Strom vollkommen verkauft wird, und der ausgewählte Netz Strom eingekauft wird.
A92: Ökologisch | J92: Ökonomisch
A94: Bilanz | J94: Bilanz
A95: [kWh] | C95: EWSstd | D95: EWSstd + SK | E95: EWSstd + PV | F95: EWSopt | G95: EWSopt + SK | H95: EWSopt + PV | J95: [kWh] | L95: EWSstd | M95: EWSstd + SK | N95: EWSstd + PV | O95: EWSopt | P95: EWSopt + SK | Q95: EWSopt + PV
A96: Jährlicher Strombezug aus dem öff. Netz | C96: =Wirtschaftlichkeit!C47 ->  | D96: =Wirtschaftlichkeit!D47 ->  | E96: =IF(Wirtschaftlichkeit!E47>0,Wirtschaftlichkeit!E47,0) ->  | F96: =Wirtschaftlichkeit!F47 ->  | G96: =Wirtschaftlichkeit!G47 ->  | H96: =IF(Wirtschaftlichkeit!H47>0,Wirtschaftlichkeit!H47,0) ->  | J96: Jährlicher Strombezug aus dem öff. Netz | L96: =Wirtschaftlichkeit!C44 ->  | M96: =Wirtschaftlichkeit!D44 ->  | N96: =Wirtschaftlichkeit!E44 ->  | O96: =Wirtschaftlichkeit!F44 ->  | P96: =Wirtschaftlichkeit!G44 ->  | Q96: =Wirtschaftlichkeit!H44 -> 
A97: Jährlicher Stromverkauf PV | E97: =IF(Wirtschaftlichkeit!E47>0,-Wirtschaftlichkeit!E24*0.7,-(Wirtschaftlichkeit!E24-Wirtschaftlichkeit!E44)) ->  | H97: =IF(Wirtschaftlichkeit!H47>0,-Wirtschaftlichkeit!E24*0.7,-(Wirtschaftlichkeit!E24-Wirtschaftlichkeit!H44)) -> 
A98: Graue Energie WP plus EWS plus Solar | C98: =((B74+B78)*B53*B54)/3.6 ->  | D98: =IF(B44=A37,((B74+B78)*B53*B54+B75*B17)/3.6,IF(B44=B37,((B74+B78)*B53*B54+B76*B17)/3.6,0)) -> 0 | E98: =((B74+B78)*B53*B54+B77*B57)/3.6 ->  | F98: =((B74+B78)*B53*B54)/3.6 ->  | G98: =IF(B44=A37,((B74+B78)*B53*B54+B75*B17)/3.6,IF(B44=B37,((B74+B78)*B53*B54+B76*B17)/3.6,0)) -> 0 | H98: =((B74+B78)*B53*B54+B77*B57)/3.6 ->  | J98: Graue Energie | L98: =((B74+B78)*B53*B54)/3.6 ->  | M98: =IF(B44=A37,((B74+B78)*B53*B54+B75*B17)/3.6,IF(B44=B37,((B74+B78)*B53*B54+B76*B17)/3.6,0)) -> 0 | N98: =((B74+B78)*B53*B54+B77*B57)/3.6 ->  | O98: =((B74+B78)*B53*B54)/3.6 ->  | P98: =IF(B44=A37,((B74+B78)*B53*B54+B75*B17)/3.6,IF(B44=B37,((B74+B78)*B53*B54+B76*B17)/3.6,0)) -> 0 | Q98: =((B74+B78)*B53*B54+B77*B57)/3.6 -> 
A99: Graue Energie pro Jahr | C99: =C98/$C$4 ->  | J99: Graue Energie pro Jahr | L99: =L98/$C$4 -> 
A100: Primärenergiegehalt des Strombezugs | C100: =IF(C96<0,0,C96*$B59) ->  | D100: =IF(D96<0,0,D96*$B59) ->  | E100: =E96*B59 ->  | F100: =IF(F96<0,0,F96*$B59) ->  | G100: =IF(G96<0,0,G96*$B59) ->  | H100: =H96*B59 ->  | J100: Primärenergiegehalt des Strombezugs | L100: =IF(L96<0,0,L96*$B59) -> 
A101: Primärenergiegehalt des Stromverkaufs | C101: 0 | D101: 0 | E101: =E97*B63 ->  | F101: 0 | G101: 0 | H101: =H97*B59 ->  | J101: Primärenergiegehalt des Stromverkaufs | L101: 0 | M101: 0 | N101: =-Wirtschaftlichkeit!E24*B63 -> -3965.4615 | O101: 0 | P101: 0 | Q101: =-Wirtschaftlichkeit!E24*B63 -> -3965.4615
A102: Strom total | C102: =C100+C101 ->  | J102: Strom total | L102: =L100+L101 -> 
A103: Primärenergiegehalt der Betriebsenergie | C103: =Wirtschaftlichkeit!C42*(1-1/$B55) ->  | D103: =Wirtschaftlichkeit!D42*(1-1/$B55)+Wirtschaftlichkeit!E18*B68 ->  | E103: =Wirtschaftlichkeit!E42*(1-1/$B55)+Wirtschaftlichkeit!E24*B69 ->  | F103: =Wirtschaftlichkeit!F42*(1-1/$B56) ->  | G103: =Wirtschaftlichkeit!G42*(1-1/$B56)+Wirtschaftlichkeit!E18*B68 ->  | H103: =Wirtschaftlichkeit!H42*(1-1/$B56)+Wirtschaftlichkeit!E24*B69 ->  | J103: Primärenergiegehalt der Betriebsenergie | L103: =Wirtschaftlichkeit!C42*(1-1/$B55) ->  | M103: =Wirtschaftlichkeit!D42*(1-1/$B55)+Wirtschaftlichkeit!E18*B68 ->  | N103: =Wirtschaftlichkeit!E42*(1-1/$B55)+Wirtschaftlichkeit!E24*B69 ->  | O103: =Wirtschaftlichkeit!F42*(1-1/$B56) ->  | P103: =Wirtschaftlichkeit!G42*(1-1/$B56)+Wirtschaftlichkeit!E18*B68 ->  | Q103: =Wirtschaftlichkeit!H42*(1-1/$B56)+Wirtschaftlichkeit!E24*B69 -> 
A104: Primärenergie total (inkl. Erdwärme) | C104: =C99+C102+C103 ->  | J104: Primärenergie total | L104: =L103+L102+L99 -> 
A105: Nicht erneuerbarer Anteil (n.e) | J105: Nicht erneuerbarer Anteil (n.e)
A106: Graue Energie (n.e) | C106: =((E74+E78)*B53*B54)/3.6 ->  | D106: =IF(B44=A37,((E74+E78)*B53*B54+E75*B17)/3.6,IF(B44=B37,((E74+E78)*B53*B54+E76*B17)/3.6,0)) -> 0 | E106: =((E74+E78)*B53*B54+E77*B57)/3.6 ->  | F106: =((E74+E78)*B53*B54)/3.6 ->  | G106: =IF(B44=A37,((E74+E78)*B53*B54+E75*B17)/3.6,IF(B44=B37,((E74+E78)*B53*B54+E76*B17)/3.6,0)) -> 0 | H106: =((E74+E78)*B53*B54+E77*B57)/3.6 ->  | J106: Graue Energie (n.e) | L106: =((E74+E78)*B53*B54)/3.6 ->  | M106: =IF(B44=A37,((E74+E78)*B53*B54+E75*B17)/3.6,IF(B44=B37,((E74+E78)*B53*B54+E76*B17)/3.6,0)) -> 0 | N106: =((E74+E78)*B53*B54+E77*B57)/3.6 ->  | O106: =((E74+E78)*B53*B54)/3.6 ->  | P106: =IF(B44=A37,((E74+E78)*B53*B54+E75*B17)/3.6,IF(B44=B37,((E74+E78)*B53*B54+E76*B17)/3.6,0)) -> 0 | Q106: =((E74+E78)*B53*B54+E77*B57)/3.6 -> 
A107: Graue Energie (n.e) pro Jahr | C107: =C106/$C$4 ->  | J107: Graue Energie (n.e) pro Jahr | L107: =L106/$C$4 -> 
A108: Primärenergiegehalt (n.e) des Strombezugs | C108: =IF(C96>0,C96*$B$60,0) ->  | D108: =IF(D96>0,D96*$B$60,0) ->  | E108: =E96*B60 ->  | F108: =IF(F96>0,F96*$B$60,0) ->  | G108: =IF(G96>0,G96*$B$60,0) ->  | H108: =H96*B60 ->  | J108: Primärenergiegehalt (n.e) des Strombezugs | L108: =L96*$B$60 -> 
A109: Primärenergiegehalt (n.e) des Stromverkaufs | C109: =IF(C96>0,0,C96*$B$64) ->  | D109: =IF(D96>0,0,D96*$B$64) ->  | E109: =E97*B64 ->  | F109: =IF(F96>0,0,F96*$B$64) ->  | G109: =IF(G96>0,0,G96*$B$64) ->  | H109: =H97*B64 ->  | J109: Primärenergiegehalt (n.e) des Stromverkaufs | L109: 0 | M109: 0 | N109: =-Wirtschaftlichkeit!E24*B64 -> -793.0923 | O109: 0 | P109: 0 | Q109: =-Wirtschaftlichkeit!E24*B64 -> -793.0923
A110: Strom total | C110: =C108+C109 ->  | J110: Strom total | L110: =L108+L109 -> 
A112: nicht erneuerbare Primärenergie total | C112: =C107+C110 ->  | J112: nicht erneuerbare Primärenergie total | L112: =L110+L107 -> 
A113: [-] | J113: [-]
A114: UBP Infrastruktur | C114: =(C74+C78)*$B53*$B54 ->  | D114: =IF(B44=A37,((C74+C78)*B53*B54+C75*B17),IF(B44=B37,((C74+C78)*B53*B54+C76*B17),0)) -> 0 | E114: =((C74+C78)*B53*B54+C77*B57) ->  | F114: =(C74+C78)*B53*B54 ->  | G114: =IF(B44=A37,((C74+C78)*B53*B54+C75*B17),IF(B44=B37,((C74+C78)*B53*B54+C76*B17),0)) -> 0 | H114: =(((C74+C78)*B53*B54)+(C77*B57)) ->  | J114: UBP Infrastruktur | L114: =(C74+C78)*$B53*$B54 ->  | M114: =IF(B44=A37,((C74+C78)*B53*B54+C75*B17),IF(B44=B37,((C74+C78)*B53*B54+C76*B17),0)) -> 0 | N114: =((C74+C78)*B53*B54+C77*B57) ->  | O114: =(C74+C78)*B53*B54 ->  | P114: =IF(B44=A37,((C74+C78)*B53*B54+C75*B17),IF(B44=B37,((C74+C78)*B53*B54+C76*B17),0)) -> 0 | Q114: =((C74+C78)*B53*B54+C77*B57) -> 
A115: UBP pro Jahr | C115: =C114/$C$4 ->  | J115: UBP pro Jahr | L115: =L114/$C$4 -> 
A116: UBP Strombezug | C116: =IF(C96>0,C100*$B$61,0) ->  | D116: =IF(D96>0,D100*$B$61,0) ->  | E116: =E100*B61 ->  | F116: =IF(F96>0,F100*$B$61,0) ->  | G116: =IF(G96>0,G100*$B$61,0) ->  | H116: =H100*B61 ->  | J116: UBP Strombezug | L116: =IF(L96>0,L100*$B$61,0) -> 
A117: UBP Gutschrift durch Stromverkauf | C117: 0 | D117: 0 | E117: =E97*B65 ->  | F117: 0 | G117: 0 | H117: =H97*B65 ->  | J117: UBP Gutschrift durch Stromverkauf | L117: 0 | M117: 0 | N117: =-Wirtschaftlichkeit!E24*B65 -> -310161.852 | O117: 0 | P117: 0 | Q117: =-Wirtschaftlichkeit!E24*B65 -> -310161.852
A118: Strom total | C118: =C117+C116 ->  | J118: Strom total | L118: =L116+L117 -> 
A120: UBP total | C120: =C115+C118 ->  | J120: UBP total | L120: =L118+L115 -> 
A121: [kg] | J121: [kg]
A122: THG Infrastuktur | C122: =((D74+D78)*B53*B54) ->  | D122: =IF(B44=A37,((D74+D78)*B53*B54+D75*B17),IF(B44=B37,((D74+D78)*B53*B54+D76*B17),0)) -> 0 | E122: =((D74+D78)*B53*B54+D77*B57) ->  | F122: =(D74+D78)*B53*B54 ->  | G122: =IF(B44=A37,((D74+D78)*B53*B54+D75*B17),IF(B44=B37,((D74+D78)*B53*B54+D76*B17),0)) -> 0 | H122: =(((D74+D78)*B53*B54)+(D77*B57)) ->  | J122: THG Infrastuktur | L122: =((D74+D78)*B53*B54) ->  | M122: =IF(B44=A37,((D74+D78)*B53*B54+D75*B17),IF(B44=B37,((D74+D78)*B53*B54+D76*B17),0)) -> 0 | N122: =((D74+D78)*B53*B54+D77*B57) ->  | O122: =(D74+D78)*B53*B54 ->  | P122: =IF(B44=A37,((D74+D78)*B53*B54+D75*B17),IF(B44=B37,((D74+D78)*B53*B54+D76*B17),0)) -> 0 | Q122: =((D74+D78)*B53*B54+D77*B57) -> 
A123: THG pro Jahr | C123: =C122/$C$4 ->  | J123: THG pro Jahr | L123: =L122/$C$4 -> 
A124: THG Strombezug | C124: =IF(C96>0,C100*$B$62,0) ->  | D124: =IF(D96>0,D100*$B$62,0) ->  | E124: =E100*B62 ->  | F124: =IF(F96>0,F100*$B$62,0) ->  | G124: =IF(G96>0,G100*$B$62,0) ->  | H124: =H100*B62 ->  | J124: THG Strombezug | L124: =IF(L96>0,L100*$B$62,0) -> 
A125: THG Gutschrift durch Stromverkauf | C125: 0 | D125: 0 | E125: =E97*B66 ->  | F125: 0 | G125: 0 | H125: =H97*B66 ->  | J125: THG Gutschrift durch Stromverkauf | L125: 0 | M125: 0 | N125: =-Wirtschaftlichkeit!E24*B66 -> -207.459252 | O125: 0 | P125: 0 | Q125: =-Wirtschaftlichkeit!E24*B66 -> -207.459252
A126: Strom total | C126: =C124+C125 ->  | J126: Strom total | L126: =L124+L125 -> 
A128: THG total | C128: =C126+C123 ->  | J128: THG total | L128: =L126+L123 -> 
A130: Export Diagramm
A131: Eigenverbrauch PV Strom | E131: =Wirtschaftlichkeit!E46 ->  | H131: =Wirtschaftlichkeit!H46 -> 
A132: Total Verbrauch | C132: =C96 ->  | D132: =D96 ->  | E132: =E131+E96 ->  | F132: =F96 ->  | G132: =G96 ->  | H132: =H131+H96 -> 
A133: Bezug auf Öffentlichem Netz Anlage mit PV | E133: =E96 ->  | H133: =H96 -> 
A135: Hier wird die wirtschaftlichkeit berechnet.
A138: Wirtschaftlichkeit | I138: Ökonomisch | N138: Exprot PV
A139: [CHF] | C139: EWSSTD | D139: EWSSTD + SK | E139: EWSSTD + PV | F139: EWSOPT | G139: EWSOPT + SK | H139: EWSOPT + PV | I139: EWSSTD + PV | J139: EWSOPT + PV | M139: PE | N139: =IF(Wirtschaftlichkeit!J52=0,0,E21*B63) -> 0
A140: Energie | C140: =Wirtschaftlichkeit!C54+Wirtschaftlichkeit!C55 ->  | D140: =Wirtschaftlichkeit!D54+Wirtschaftlichkeit!D55 ->  | E140: =Wirtschaftlichkeit!E54+Wirtschaftlichkeit!E55 ->  | F140: =Wirtschaftlichkeit!F54+Wirtschaftlichkeit!F55 ->  | G140: =Wirtschaftlichkeit!G54+Wirtschaftlichkeit!G55 ->  | H140: =Wirtschaftlichkeit!H54+Wirtschaftlichkeit!H55 ->  | I140: =Wirtschaftlichkeit!J54+Wirtschaftlichkeit!J55 -> 0 | J140: =Wirtschaftlichkeit!K54+Wirtschaftlichkeit!K55 -> 0 | M140: nePE | N140: =IF(Wirtschaftlichkeit!J52=0,0,E21*B64) -> 0
A141: Wartung | C141: =Wirtschaftlichkeit!C56 ->  | D141: =Wirtschaftlichkeit!D56 ->  | E141: =Wirtschaftlichkeit!E56 ->  | F141: =Wirtschaftlichkeit!F56 ->  | G141: =Wirtschaftlichkeit!G56 ->  | H141: =Wirtschaftlichkeit!H56 ->  | I141: =Wirtschaftlichkeit!J56 -> 0 | J141: =Wirtschaftlichkeit!K56 -> 0 | M141: THG | N141: =IF(Wirtschaftlichkeit!J52=0,0,E21*B66) -> 0
A142: Verzinsung + Abschreibung | C142: =Wirtschaftlichkeit!C52*Wirtschaftlichkeit!C53 ->  | D142: =Wirtschaftlichkeit!D52*Wirtschaftlichkeit!D53 ->  | E142: =Wirtschaftlichkeit!E52*Wirtschaftlichkeit!E53 ->  | F142: =Wirtschaftlichkeit!F52*Wirtschaftlichkeit!F53 ->  | G142: =Wirtschaftlichkeit!G52*Wirtschaftlichkeit!G53 ->  | H142: =Wirtschaftlichkeit!H52*Wirtschaftlichkeit!H53 ->  | I142: =Wirtschaftlichkeit!J52*Wirtschaftlichkeit!J53 -> 0 | J142: =Wirtschaftlichkeit!K52*Wirtschaftlichkeit!K53 -> 0 | M142: UBP | N142: =IF(Wirtschaftlichkeit!J52=0,0,E21*B65) -> 0
A143: Total | C143: =SUM(C140:C142) ->  | I143: =SUM(I140:I142) -> 0 | J143: =SUM(J140:J142) -> 0 | M143: Stromproduktion | N143: =N139/B63 -> 0

Sheet Berechnungsblatt Solarkollektor (hidden)
A1: Überprüfung Thermische Kollektoren (Norm.Vert)
B3: Wärmeleistung Heizung | C3: ='Solarkollektor Modell'!C7 ->  | D3: kW | F3: Heizungsunterstützung direkt | G3: =AB18 ->  | H3: kWh pro Jahr | I3: =100/C4*G3 ->  | J3: % | K3: Deckungsgrad
B4: Wärmebedarf Heizung | C4: ='Solarkollektor Modell'!C8 ->  | D4: kWh pro Jahr | F4: Warmwasserunterstützung direkt | G4: =Y18 ->  | H4: kWh pro Jahr | I4: =100/(C6*Q17)*G4 ->  | J4: % | K4: Deckungsgrad | AA4: Ja
B5: Fläche SK | C5: ='Solarkollektor Modell'!C9 ->  | D5: m2 | F5: Unterstützung Speicher an g.es.Wärme | G5: =AO18 ->  | H5: kWh pro Jahr | I5: =100/C12*G5 ->  | J5: % | K5: Deckungsgrad | U5: =2169/4 -> 542.25 | V5: =V16/5.2 -> 410 | W5: =410*5.2 -> 2132 | AA5: Nein
B6: Anzahl Personen | C6: ='Solarkollektor Modell'!C10 -> 0 | F6: Wärmeunterstützung Total | G6: =G4+G3+G5 ->  | H6: kWh pro Jahr | I6: =100/C12*(G4+G3+G5) ->  | J6: % | K6: Deckungsgrad
B8: Heizungsunterstützung | C8: ='Solarkollektor Modell'!C13 -> 0 | F8: Überschussstunden SK eff. (ev. für Speicher) | G8: =AD17*24 -> 24 | H8: =G8/24 -> 1 | I8: Tage | X8: Speicher WW Liter
B9: Speicher | C9: ='Solarkollektor Modell'!C14 -> Ja | F9: Heizzstunden eff | G9: =COUNTIF(K19:K383,">0")*24 -> 0 | H9: =G9/24 -> 0 | I9: Tage | N9: =106326/34*12/55 -> 682.3058824 | V9: =Q16*Q17 -> 0 | W9: =V9-Y18 ->  | X9: =W9/0.07 -> 
B10: Speichervolumen | C10: ='Solarkollektor Modell'!C15 ->  | D10: l
B11: max | C11: =75*C5 ->  | D11: l | H11: ='Solarkollektor Modell'!C11 -> 160
B12: Wärmebedarf Total | C12: =C4+(Q17*Q16) ->  | D12: kWh pro Jahr | V12: Theoretischer Ertrag SK | X12: Ertrag SK für Warmwasser | AD12: Ertrag SK Heizungsunterstützung
J14: 0 | V14: SK Anlage
M15: Heizleistung | Q15: Warmwasser | T15: Gesamtleistung | V15: =C5 ->  | W15: Fläche m2 | X15: Warmwasser SK | AA15: Heizungsunterstützung SK | AD15: SK tot | AG15: Überschuss SK
G16: Leistung | H16: =C3 ->  | I16: kW | Q16: =C6 -> 0 | R16: Personen | V16: =410*5.2 -> 2132 | W16: Wärme5.2 kWh pro Jahr | AO16: Pufferspeicher
D17: 142.6878504 | E17: 499 | M17: kW | Q17: 850 | R17: kWh pro Person und Jahr | T17: kW | V17: =((V16)/((8760/2-1400/2)+1400))*((8760/2)/(8760/2-1400/2)) -> 0.4995164327 | W17: Leistung Peak5.2 kW | AD17: =COUNTIF(AD19:AD383,Q19) -> 1 | AH17: kWh
E18: =COUNTIF(E19:E383,">0") -> 133 | J18: =COUNTIF(J19:J383,">=0") -> 0 | K18: =SUMIF(K19:K383,">0") -> 0 | V18: =V15/5.2*V17 ->  | W18: Leistung Peak kW | Y18: =SUM(Y19:Y383) ->  | AA18: =IF(C8="Nein",0,1) -> 1 | AB18: =SUM(AB19:AB383) ->  | AE18: =SUM(AE19:AE383) ->  | AH18: =SUM(AH19:AH383) ->  | AI18: =IF(C9="Ja",IF(C10*0.07>AH18,AH18,C10*0.07),0) ->  | AJ18: 0.1095236921 | AO18: =SUM(AO19:AO383) ->  | AQ18: grafik
A19: Jahresstromverbrauch | B19: 2013-01-01 | C19: 1 | D19: =1/(_xlfn.NORM.DIST(C19,(365/2),$D$17,FALSE)) -> 803.196436 | E19: =D19-$E$17 -> 304.196436 | G19: =(E19) -> 304.196436 | I19: =G19*$H$16/MAX($G$19:$G$383) ->  | J19: =I19-$J$14 ->  | K19: =I19*24 ->  | M19: =IF(J19>0,J19,0) ->  | Q19: =($Q$17*$Q$16)/(365*24) -> 0 | T19: =IF(J19>0,Q19+J19,Q19) ->  | V19: 0 | X19: =IF(V19<Q19,V19,Q19) -> 0 | Y19: =X19*24 -> 0 | AA19: =IF(AND(V19>X19,(V19)<T19),(V19-Q19),IF(AND(V19>T19,T19<>Q19),T19-Q19,0))*$AA$18 ->  | AB19: =AA19*24 ->  | AD19: =IF(V19>Q19,Q19+AA19,V19) -> 0 | AE19: =AD19*24 -> 0 | AG19: =V19-AD19 -> 0 | AH19: =AG19*24 -> 0 | AJ19: =IF($C$9="Ja",$AJ$18,0) -> 0.1095236921 | AK19: =IF(AJ19<T19,AJ19,T19) ->  | AL19: =IF(AK19=0,0,AK19-AD19) ->  | AM19: =IF(AL19<0,0,AL19) ->  | AN19: =IF(AND($C$8="Nein",AM19>Q19),Q19,AM19) ->  | AO19: =AN19*24 ->  | AQ19: =IF(AND($C$8="Nein",(AN19+AD19)>Q19),Q19,AN19+AD19) -> 
B20: 2013-01-02 | C20: 2 | D20: =1/(_xlfn.NORM.DIST(C20,(365/2),$D$17,FALSE)) -> 796.087619 | E20: =D20-$E$17 -> 297.087619 | G20: =(E20) -> 297.087619 | I20: =G20*$H$16/MAX($G$19:$G$383) ->  | J20: =I20-$J$14 ->  | K20: =I20*24 ->  | M20: =IF(J20>0,J20,0) ->  | Q20: =($Q$17*$Q$16)/(365*24) -> 0 | V20: =V19+($V$18/(365/2)) ->  | X20: =IF(V20<Q20,V20,Q20) ->  | Y20: =X20*24 ->  | AA20: =IF(AND(V20>X20,(V20)<T20),(V20-Q20),IF(AND(V20>T20,T20<>Q20),T20-Q20,0))*$AA$18 ->  | AB20: =AA20*24 ->  | AD20: =IF(V20>Q20,Q20+AA20,V20) ->  | AE20: =AD20*24 ->  | AG20: =V20-AD20 ->  | AH20: =AG20*24 ->  | AJ20: =IF($C$9="Ja",$AJ$18,0) -> 0.1095236921 | AK20: =IF(AJ20<T20,AJ20,T20) ->  | AL20: =IF(AK20=0,0,AK20-AD20) ->  | AM20: =IF(AL20<0,0,AL20) ->  | AO20: =AN20*24 ->  | AQ20: =IF(AND($C$8="Nein",(AN20+AD20)>Q20),Q20,AN20+AD20) -> 
B21: 2013-01-03 | C21: 3 | D21: =1/(_xlfn.NORM.DIST(C21,(365/2),$D$17,FALSE)) -> 789.0804755 | E21: =D21-$E$17 -> 290.0804755 | G21: 290.0804755 | J21: =I21-$J$14 ->  | Q21: 0 | V21: =V20+($V$18/(365/2)) ->  | X21: =IF(V21<Q21,V21,Q21) ->  | Y21: =X21*24 ->  | AB21: =AA21*24 ->  | AD21: =IF(V21>Q21,Q21+AA21,V21) ->  | AE21: =AD21*24 ->  | AJ21: 0.1095236921 | AO21: =AN21*24 ->  | AQ21: =IF(AND($C$8="Nein",(AN21+AD21)>Q21),Q21,AN21+AD21) -> 
B22: 2013-01-04 | C22: 4 | D22: =1/(_xlfn.NORM.DIST(C22,(365/2),$D$17,FALSE)) -> 782.1734252 | E22: =D22-$E$17 -> 283.1734252 | G22: 283.1734252 | Q22: 0 | AJ22: 0.1095236921
B23: 2013-01-05 | C23: 5 | D23: 775.3649165 | E23: =D23-$E$17 -> 276.3649165 | G23: 276.3649165 | Q23: 0 | AJ23: 0.1095236921
B24: 2013-01-06 | C24: 6 | D24: 768.6534257 | E24: 269.6534257 | G24: 269.6534257 | Q24: 0 | AJ24: 0.1095236921
B25: 2013-01-07 | C25: 7 | D25: 762.0374565 | E25: 263.0374565 | G25: 263.0374565 | Q25: 0 | AJ25: 0.1095236921
B26: 2013-01-08 | C26: 8 | D26: 755.5155397 | E26: 256.5155397 | G26: 256.5155397 | Q26: 0 | AJ26: 0.1095236921
B27: 2013-01-09 | C27: 9 | D27: 749.0862324 | E27: 250.0862324 | G27: 250.0862324 | Q27: 0 | AJ27: 0.1095236921
B28: 2013-01-10 | C28: 10 | D28: 742.7481175 | E28: 243.7481175 | G28: 243.7481175 | Q28: 0 | AJ28: 0.1095236921
B29: 2013-01-11 | C29: 11 | D29: 736.4998035 | E29: 237.4998035 | G29: 237.4998035 | Q29: 0 | AJ29: 0.1095236921
B30: 2013-01-12 | C30: 12 | D30: 730.3399238 | E30: 231.3399238 | G30: 231.3399238 | Q30: 0 | AJ30: 0.1095236921
B31: 2013-01-13 | C31: 13 | D31: 724.267136 | E31: 225.267136 | G31: 225.267136 | Q31: 0 | AJ31: 0.1095236921
B32: 2013-01-14 | C32: 14 | D32: 718.280122 | E32: 219.280122 | G32: 219.280122 | Q32: 0 | AJ32: 0.1095236921
B33: 2013-01-15 | C33: 15 | D33: 712.377587 | E33: 213.377587 | G33: 213.377587 | Q33: 0 | AJ33: 0.1095236921
B34: 2013-01-16 | C34: 16 | D34: 706.5582594 | E34: 207.5582594 | G34: 207.5582594 | Q34: 0 | AJ34: 0.1095236921
B35: 2013-01-17 | C35: 17 | D35: 700.82089 | E35: 201.82089 | G35: 201.82089 | Q35: 0 | AJ35: 0.1095236921
B36: 2013-01-18 | C36: 18 | D36: 695.1642522 | E36: 196.1642522 | G36: 196.1642522 | Q36: 0 | AJ36: 0.1095236921
B37: 2013-01-19 | C37: 19 | D37: 689.5871407 | E37: =D37-$E$17 -> 190.5871407 | G37: 190.5871407 | Q37: 0 | AJ37: 0.1095236921
B38: 2013-01-20 | C38: 20 | D38: 684.088372 | E38: 185.088372 | G38: 185.088372 | Q38: 0 | AJ38: 0.1095236921
B39: 2013-01-21 | C39: 21 | D39: 678.6667832 | E39: 179.6667832 | G39: 179.6667832 | Q39: 0 | AJ39: 0.1095236921
B40: 2013-01-22 | C40: 22 | D40: 673.3212323 | E40: 174.3212323 | G40: 174.3212323 | Q40: 0 | AJ40: 0.1095236921
B41: 2013-01-23 | C41: 23 | D41: 668.0505973 | E41: 169.0505973 | G41: 169.0505973 | Q41: 0 | AJ41: 0.1095236921
B42: 2013-01-24 | C42: 24 | D42: 662.853776 | E42: 163.853776 | G42: 163.853776 | Q42: 0 | AJ42: 0.1095236921
B43: 2013-01-25 | C43: 25 | D43: 657.7296857 | E43: 158.7296857 | G43: 158.7296857 | Q43: 0 | AJ43: 0.1095236921
B44: 2013-01-26 | C44: 26 | D44: 652.6772628 | E44: 153.6772628 | G44: 153.6772628 | Q44: 0 | AJ44: 0.1095236921
B45: 2013-01-27 | C45: 27 | D45: 647.6954622 | E45: 148.6954622 | G45: 148.6954622 | Q45: 0 | AJ45: 0.1095236921
B46: 2013-01-28 | C46: 28 | D46: 642.7832574 | E46: 143.7832574 | G46: 143.7832574 | Q46: 0 | AJ46: 0.1095236921
B47: 2013-01-29 | C47: 29 | D47: 637.9396399 | E47: 138.9396399 | G47: 138.9396399 | Q47: 0 | AJ47: 0.1095236921
B48: 2013-01-30 | C48: 30 | D48: 633.1636189 | E48: 134.1636189 | G48: 134.1636189 | Q48: 0 | AJ48: 0.1095236921
B49: 2013-01-31 | C49: 31 | D49: 628.4542208 | E49: 129.4542208 | G49: 129.4542208 | Q49: 0 | AJ49: 0.1095236921
B50: 2013-02-01 | C50: 32 | D50: 623.8104892 | E50: 124.8104892 | G50: 124.8104892 | Q50: 0 | AJ50: 0.1095236921
B51: 2013-02-02 | C51: 33 | D51: 619.2314843 | E51: 120.2314843 | G51: 120.2314843 | Q51: 0 | AJ51: 0.1095236921
B52: 2013-02-03 | C52: 34 | D52: 614.716283 | E52: 115.716283 | G52: 115.716283 | Q52: 0 | AJ52: 0.1095236921
B53: 2013-02-04 | C53: 35 | D53: 610.263978 | E53: 111.263978 | G53: 111.263978 | Q53: 0 | AJ53: 0.1095236921
B54: 2013-02-05 | C54: 36 | D54: 605.873678 | E54: 106.873678 | G54: 106.873678 | Q54: 0 | AJ54: 0.1095236921
B55: 2013-02-06 | C55: 37 | D55: 601.5445072 | E55: 102.5445072 | G55: 102.5445072 | Q55: 0 | AJ55: 0.1095236921
B56: 2013-02-07 | C56: 38 | D56: 597.275605 | E56: 98.27560504 | G56: 98.27560504 | Q56: 0 | AJ56: 0.1095236921
B57: 2013-02-08 | C57: 39 | D57: 593.066126 | E57: 94.06612597 | G57: 94.06612597 | Q57: 0 | AJ57: 0.1095236921
B58: 2013-02-09 | C58: 40 | D58: 588.9152391 | E58: 89.91523912 | G58: 89.91523912 | Q58: 0 | AJ58: 0.1095236921
B59: 2013-02-10 | C59: 41 | D59: 584.8221281 | E59: 85.82212806 | G59: 85.82212806 | Q59: 0 | AJ59: 0.1095236921
B60: 2013-02-11 | C60: 42 | D60: 580.7859906 | E60: 81.78599055 | G60: 81.78599055 | Q60: 0 | AJ60: 0.1095236921
B61: 2013-02-12 | C61: 43 | D61: 576.8060383 | E61: 77.80603827 | G61: 77.80603827 | Q61: 0 | AJ61: 0.1095236921
B62: 2013-02-13 | C62: 44 | D62: 572.8814966 | E62: 73.88149656 | G62: 73.88149656 | Q62: 0 | AJ62: 0.1095236921
B63: 2013-02-14 | C63: 45 | D63: 569.0116042 | E63: 70.01160419 | G63: 70.01160419 | Q63: 0 | AJ63: 0.1095236921
B64: 2013-02-15 | C64: 46 | D64: 565.1956131 | E64: 66.19561313 | G64: 66.19561313 | Q64: 0 | AJ64: 0.1095236921
B65: 2013-02-16 | C65: 47 | D65: 561.4327883 | E65: 62.43278829 | G65: 62.43278829 | Q65: 0 | AJ65: 0.1095236921
B66: 2013-02-17 | C66: 48 | D66: 557.7224073 | E66: 58.7224073 | G66: 58.7224073 | Q66: 0 | AJ66: 0.1095236921
B67: 2013-02-18 | C67: 49 | D67: 554.0637603 | E67: 55.06376029 | G67: 55.06376029 | Q67: 0 | AJ67: 0.1095236921
B68: 2013-02-19 | C68: 50 | D68: 550.4561497 | E68: 51.45614965 | G68: 51.45614965 | Q68: 0 | AJ68: 0.1095236921
B69: 2013-02-20 | C69: 51 | D69: 546.8988898 | E69: 47.89888984 | G69: 47.89888984 | Q69: 0 | AJ69: 0.1095236921
B70: 2013-02-21 | C70: 52 | D70: 543.3913072 | E70: 44.39130715 | G70: 44.39130715 | Q70: 0 | AJ70: 0.1095236921
B71: 2013-02-22 | C71: 53 | D71: 539.9327395 | E71: 40.93273951 | G71: 40.93273951 | Q71: 0 | AJ71: 0.1095236921
B72: 2013-02-23 | C72: 54 | D72: 536.5225363 | E72: 37.52253628 | G72: 37.52253628 | Q72: 0 | AJ72: 0.1095236921
B73: 2013-02-24 | C73: 55 | D73: 533.160058 | E73: 34.16005805 | G73: 34.16005805 | Q73: 0 | AJ73: 0.1095236921
B74: 2013-02-25 | C74: 56 | D74: 529.8446764 | E74: 30.84467643 | G74: 30.84467643 | Q74: 0 | AJ74: 0.1095236921
B75: 2013-02-26 | C75: 57 | D75: 526.5757739 | E75: 27.57577389 | G75: 27.57577389 | Q75: 0 | AJ75: 0.1095236921
B76: 2013-02-27 | C76: 58 | D76: 523.3527435 | E76: 24.35274355 | G76: 24.35274355 | Q76: 0 | AJ76: 0.1095236921
B77: 2013-02-28 | C77: 59 | D77: 520.174989 | E77: 21.17498898 | G77: 21.17498898 | Q77: 0 | AJ77: 0.1095236921
B78: 2013-03-01 | C78: 60 | D78: 517.0419241 | E78: 18.04192406 | G78: 18.04192406 | Q78: 0 | AJ78: 0.1095236921
B79: 2013-03-02 | C79: 61 | D79: 513.9529728 | E79: 14.95297277 | G79: 14.95297277 | Q79: 0 | AJ79: 0.1095236921
B80: 2013-03-03 | C80: 62 | D80: 510.907569 | E80: 11.90756902 | G80: 11.90756902 | Q80: 0 | AJ80: 0.1095236921
B81: 2013-03-04 | C81: 63 | D81: 507.9051565 | E81: 8.905156494 | G81: 8.905156494 | Q81: 0 | AJ81: 0.1095236921
B82: 2013-03-05 | C82: 64 | D82: 504.9451885 | E82: 5.945188474 | G82: 5.945188474 | Q82: 0 | AJ82: 0.1095236921
B83: 2013-03-06 | C83: 65 | D83: 502.0271277 | E83: 3.027127676 | G83: 3.027127676 | Q83: 0 | T83: =IF(J83>0,Q83+J83,Q83) ->  | AD83: =IF(V83>Q83,Q83+AA83,V83) ->  | AJ83: 0.1095236921
B84: 2013-03-07 | C84: 66 | D84: 499.1504461 | E84: 0.150446093 | G84: =(E84) -> 0.150446093 | I84: =G84*$H$16/MAX($G$19:$G$383) ->  | K84: =I84*24 ->  | M84: =IF(J84>0,J84,0) ->  | Q84: =($Q$17*$Q$16)/(365*24) -> 0 | V84: =V83+($V$18/(365/2)) ->  | AA84: =IF(AND(V84>X84,(V84)<T84),(V84-Q84),IF(AND(V84>T84,T84<>Q84),T84-Q84,0))*$AA$18 ->  | AG84: =V84-AD84 ->  | AH84: =AG84*24 ->  | AJ84: =IF($C$9="Ja",$AJ$18,0) -> 0.1095236921 | AK84: =IF(AJ84<T84,AJ84,T84) ->  | AL84: =IF(AK84=0,0,AK84-AD84) ->  | AM84: =IF(AL84<0,0,AL84) ->  | AN84: =IF(AND($C$8="Nein",AM84>Q84),Q84,AM84) ->  | AO84: =AN84*24 -> 
B85: 2013-03-08 | C85: 67 | D85: 496.3146248 | E85: -2.685375166 | G85: -2.685375166 | J85: =I85-$J$14 ->  | Q85: 0 | X85: =IF(V85<Q85,V85,Q85) ->  | Y85: =X85*24 ->  | AB85: =AA85*24 ->  | AE85: =AD85*24 ->  | AJ85: 0.1095236921 | AQ85: =IF(AND($C$8="Nein",(AN85+AD85)>Q85),Q85,AN85+AD85) -> 
B86: 2013-03-09 | C86: 68 | D86: =1/(_xlfn.NORM.DIST(C86,(365/2),$D$17,FALSE)) -> 493.519154 | E86: -5.480846026 | G86: -5.480846026 | Q86: 0 | AJ86: 0.1095236921
B87: 2013-03-10 | C87: 69 | D87: 490.7635324 | E87: =D87-$E$17 -> -8.236467599 | G87: -8.236467599 | Q87: 0 | AJ87: 0.1095236921
B88: 2013-03-11 | C88: 70 | D88: 488.0472677 | E88: -10.95273233 | G88: -10.95273233 | Q88: 0 | AJ88: 0.1095236921
B89: 2013-03-12 | C89: 71 | D89: 485.3698759 | E89: -13.63012415 | G89: -13.63012415 | Q89: 0 | AJ89: 0.1095236921
B90: 2013-03-13 | C90: 72 | D90: 482.7308814 | E90: -16.26911859 | G90: -16.26911859 | Q90: 0 | AJ90: 0.1095236921
B91: 2013-03-14 | C91: 73 | D91: 480.129817 | E91: -18.87018298 | G91: -18.87018298 | Q91: 0 | AJ91: 0.1095236921
B92: 2013-03-15 | C92: 74 | D92: 477.5662235 | E92: -21.4337765 | G92: -21.4337765 | Q92: 0 | AJ92: 0.1095236921
B93: 2013-03-16 | C93: 75 | D93: 475.0396496 | E93: -23.9603504 | G93: -23.9603504 | Q93: 0 | AJ93: 0.1095236921
B94: 2013-03-17 | C94: 76 | D94: 472.5496519 | E94: -26.45034807 | G94: -26.45034807 | Q94: 0 | AJ94: 0.1095236921
B95: 2013-03-18 | C95: 77 | D95: 470.0957948 | E95: -28.90420519 | G95: -28.90420519 | Q95: 0 | AJ95: 0.1095236921
B96: 2013-03-19 | C96: 78 | D96: 467.6776501 | E96: -31.32234987 | G96: -31.32234987 | Q96: 0 | AJ96: 0.1095236921
B97: 2013-03-20 | C97: 79 | D97: 465.2947973 | E97: -33.70520273 | G97: -33.70520273 | Q97: 0 | AJ97: 0.1095236921
B98: 2013-03-21 | C98: 80 | D98: 462.9468229 | E98: -36.05317709 | G98: -36.05317709 | Q98: 0 | AJ98: 0.1095236921
B99: 2013-03-22 | C99: 81 | D99: 460.633321 | E99: -38.36667901 | G99: -38.36667901 | Q99: 0 | AJ99: 0.1095236921
B100: 2013-03-23 | C100: 82 | D100: 458.3538925 | E100: -40.64610746 | G100: -40.64610746 | Q100: 0 | AJ100: 0.1095236921
B101: 2013-03-24 | C101: 83 | D101: 456.1081456 | E101: -42.89185443 | G101: -42.89185443 | Q101: 0 | AJ101: 0.1095236921
B102: 2013-03-25 | C102: 84 | D102: 453.895695 | E102: -45.10430501 | G102: -45.10430501 | Q102: 0 | AJ102: 0.1095236921
B103: 2013-03-26 | C103: 85 | D103: 451.7161625 | E103: -47.28383751 | G103: -47.28383751 | Q103: 0 | AJ103: 0.1095236921
B104: 2013-03-27 | C104: 86 | D104: 449.5691764 | E104: -49.43082361 | G104: -49.43082361 | Q104: 0 | AJ104: 0.1095236921
B105: 2013-03-28 | C105: 87 | D105: 447.4543716 | E105: -51.54562841 | G105: -51.54562841 | Q105: 0 | AJ105: 0.1095236921
B106: 2013-03-29 | C106: 88 | D106: 445.3713895 | E106: -53.62861053 | G106: -53.62861053 | Q106: 0 | AJ106: 0.1095236921
B107: 2013-03-30 | C107: 89 | D107: 443.3198777 | E107: -55.68012228 | G107: -55.68012228 | Q107: 0 | AJ107: 0.1095236921
B108: 2013-03-31 | C108: 90 | D108: 441.2994903 | E108: -57.70050968 | G108: -57.70050968 | Q108: 0 | AJ108: 0.1095236921
B109: 2013-04-01 | C109: 91 | D109: 439.3098874 | E109: -59.69011259 | G109: -59.69011259 | Q109: 0 | AJ109: 0.1095236921
B110: 2013-04-02 | C110: 92 | D110: 437.3507352 | E110: -61.64926482 | G110: -61.64926482 | Q110: 0 | AJ110: 0.1095236921
B111: 2013-04-03 | C111: 93 | D111: 435.4217058 | E111: -63.57829419 | G111: -63.57829419 | Q111: 0 | AJ111: 0.1095236921
B112: 2013-04-04 | C112: 94 | D112: 433.5224774 | E112: -65.47752264 | G112: -65.47752264 | Q112: 0 | AJ112: 0.1095236921
B113: 2013-04-05 | C113: 95 | D113: 431.6527337 | E113: -67.34726634 | G113: -67.34726634 | Q113: 0 | AJ113: 0.1095236921
B114: 2013-04-06 | C114: 96 | D114: 429.8121643 | E114: -69.18783571 | G114: -69.18783571 | Q114: 0 | AJ114: 0.1095236921
B115: 2013-04-07 | C115: 97 | D115: 428.0004644 | E115: -70.99953559 | G115: -70.99953559 | Q115: 0 | AJ115: 0.1095236921
B116: 2013-04-08 | C116: 98 | D116: 426.2173347 | E116: -72.78266525 | G116: -72.78266525 | Q116: 0 | AJ116: 0.1095236921
B117: 2013-04-09 | C117: 99 | D117: 424.4624815 | E117: -74.53751853 | G117: -74.53751853 | Q117: 0 | AJ117: 0.1095236921
B118: 2013-04-10 | C118: 100 | D118: 422.7356161 | E118: -76.26438389 | G118: -76.26438389 | Q118: 0 | AJ118: 0.1095236921
B119: 2013-04-11 | C119: 101 | D119: 421.0364555 | E119: -77.96354447 | G119: -77.96354447 | Q119: 0 | AJ119: 0.1095236921
B120: 2013-04-12 | C120: 102 | D120: 419.3647218 | E120: -79.63527823 | G120: -79.63527823 | Q120: 0 | AJ120: 0.1095236921
B121: 2013-04-13 | C121: 103 | D121: 417.7201421 | E121: -81.27985795 | G121: -81.27985795 | Q121: 0 | AJ121: 0.1095236921
B122: 2013-04-14 | C122: 104 | D122: 416.1024486 | E122: -82.89755136 | G122: -82.89755136 | Q122: 0 | AJ122: 0.1095236921
B123: 2013-04-15 | C123: 105 | D123: 414.5113788 | E123: -84.48862119 | G123: -84.48862119 | Q123: 0 | AJ123: 0.1095236921
B124: 2013-04-16 | C124: 106 | D124: 412.9466748 | E124: -86.05332525 | G124: -86.05332525 | Q124: 0 | AJ124: 0.1095236921
B125: 2013-04-17 | C125: 107 | D125: 411.4080835 | E125: -87.59191647 | G125: -87.59191647 | Q125: 0 | AJ125: 0.1095236921
B126: 2013-04-18 | C126: 108 | D126: 409.895357 | E126: -89.10464302 | G126: -89.10464302 | Q126: 0 | AJ126: 0.1095236921
B127: 2013-04-19 | C127: 109 | D127: 408.4082517 | E127: -90.59174832 | G127: -90.59174832 | Q127: 0 | AJ127: 0.1095236921
B128: 2013-04-20 | C128: 110 | D128: 406.9465289 | E128: -92.05347115 | G128: -92.05347115 | Q128: 0 | AJ128: 0.1095236921
B129: 2013-04-21 | C129: 111 | D129: 405.5099543 | E129: -93.49004569 | G129: -93.49004569 | Q129: 0 | AJ129: 0.1095236921
B130: 2013-04-22 | C130: 112 | D130: 404.0982984 | E130: -94.90170159 | G130: -94.90170159 | Q130: 0 | AJ130: 0.1095236921
B131: 2013-04-23 | C131: 113 | D131: 402.711336 | E131: -96.28866404 | G131: -96.28866404 | Q131: 0 | AJ131: 0.1095236921
B132: 2013-04-24 | C132: 114 | D132: 401.3488462 | E132: -97.65115379 | G132: -97.65115379 | Q132: 0 | AJ132: 0.1095236921
B133: 2013-04-25 | C133: 115 | D133: 400.0106127 | E133: -98.98938727 | G133: -98.98938727 | Q133: 0 | AJ133: 0.1095236921
B134: 2013-04-26 | C134: 116 | D134: 398.6964234 | E134: -100.3035766 | G134: -100.3035766 | Q134: 0 | AJ134: 0.1095236921
B135: 2013-04-27 | C135: 117 | D135: 397.4060704 | E135: -101.5939296 | G135: -101.5939296 | Q135: 0 | AJ135: 0.1095236921
B136: 2013-04-28 | C136: 118 | D136: 396.1393499 | E136: -102.8606501 | G136: -102.8606501 | Q136: 0 | AJ136: 0.1095236921
B137: 2013-04-29 | C137: 119 | D137: 394.8960624 | E137: -104.1039376 | G137: -104.1039376 | Q137: 0 | AJ137: 0.1095236921
B138: 2013-04-30 | C138: 120 | D138: 393.6760125 | E138: -105.3239875 | G138: -105.3239875 | Q138: 0 | AJ138: 0.1095236921
B139: 2013-05-01 | C139: 121 | D139: 392.4790086 | E139: -106.5209914 | G139: -106.5209914 | Q139: 0 | AJ139: 0.1095236921
B140: 2013-05-02 | C140: 122 | D140: 391.3048633 | E140: -107.6951367 | G140: -107.6951367 | Q140: 0 | AJ140: 0.1095236921
B141: 2013-05-03 | C141: 123 | D141: 390.153393 | E141: -108.846607 | G141: -108.846607 | Q141: 0 | AJ141: 0.1095236921
B142: 2013-05-04 | C142: 124 | D142: 389.0244181 | E142: -109.9755819 | G142: -109.9755819 | Q142: 0 | AJ142: 0.1095236921
B143: 2013-05-05 | C143: 125 | D143: 387.9177627 | E143: -111.0822373 | G143: -111.0822373 | Q143: 0 | AJ143: 0.1095236921
B144: 2013-05-06 | C144: 126 | D144: 386.8332547 | E144: -112.1667453 | G144: -112.1667453 | Q144: 0 | AJ144: 0.1095236921
B145: 2013-05-07 | C145: 127 | D145: 385.7707259 | E145: -113.2292741 | G145: -113.2292741 | Q145: 0 | AJ145: 0.1095236921
B146: 2013-05-08 | C146: 128 | D146: 384.7300117 | E146: -114.2699883 | G146: -114.2699883 | Q146: 0 | AJ146: 0.1095236921
B147: 2013-05-09 | C147: 129 | D147: 383.710951 | E147: -115.289049 | G147: -115.289049 | Q147: 0 | T147: =IF(J147>0,Q147+J147,Q147) ->  | AD147: =IF(V147>Q147,Q147+AA147,V147) ->  | AJ147: 0.1095236921
B148: 2013-05-10 | C148: 130 | D148: 382.7133867 | E148: -116.2866133 | G148: =(E148) -> -116.2866133 | I148: =G148*$H$16/MAX($G$19:$G$383) ->  | K148: =I148*24 ->  | M148: =IF(J148>0,J148,0) ->  | Q148: =($Q$17*$Q$16)/(365*24) -> 0 | V148: =V147+($V$18/(365/2)) ->  | AA148: =IF(AND(V148>X148,(V148)<T148),(V148-Q148),IF(AND(V148>T148,T148<>Q148),T148-Q148,0))*$AA$18 ->  | AG148: =V148-AD148 ->  | AH148: =AG148*24 ->  | AJ148: =IF($C$9="Ja",$AJ$18,0) -> 0.1095236921 | AK148: =IF(AJ148<T148,AJ148,T148) ->  | AL148: =IF(AK148=0,0,AK148-AD148) ->  | AM148: =IF(AL148<0,0,AL148) ->  | AN148: =IF(AND($C$8="Nein",AM148>Q148),Q148,AM148) ->  | AO148: =AN148*24 -> 
B149: 2013-05-11 | C149: 131 | D149: 381.7371648 | E149: -117.2628352 | G149: -117.2628352 | J149: =I149-$J$14 ->  | Q149: 0 | X149: =IF(V149<Q149,V149,Q149) ->  | Y149: =X149*24 ->  | AB149: =AA149*24 ->  | AE149: =AD149*24 ->  | AJ149: 0.1095236921 | AQ149: =IF(AND($C$8="Nein",(AN149+AD149)>Q149),Q149,AN149+AD149) -> 
B150: 2013-05-12 | C150: 132 | D150: =1/(_xlfn.NORM.DIST(C150,(365/2),$D$17,FALSE)) -> 380.7821353 | E150: -118.2178647 | G150: -118.2178647 | Q150: 0 | AJ150: 0.1095236921
B151: 2013-05-13 | C151: 133 | D151: 379.8481513 | E151: =D151-$E$17 -> -119.1518487 | G151: -119.1518487 | Q151: 0 | AJ151: 0.1095236921
B152: 2013-05-14 | C152: 134 | D152: 378.9350697 | E152: -120.0649303 | G152: -120.0649303 | Q152: 0 | AJ152: 0.1095236921
B153: 2013-05-15 | C153: 135 | D153: 378.0427506 | E153: -120.9572494 | G153: -120.9572494 | Q153: 0 | AJ153: 0.1095236921
B154: 2013-05-16 | C154: 136 | D154: 377.1710575 | E154: -121.8289425 | G154: -121.8289425 | Q154: 0 | AJ154: 0.1095236921
B155: 2013-05-17 | C155: 137 | D155: 376.3198574 | E155: -122.6801426 | G155: -122.6801426 | Q155: 0 | AJ155: 0.1095236921
B156: 2013-05-18 | C156: 138 | D156: 375.4890204 | E156: -123.5109796 | G156: -123.5109796 | Q156: 0 | AJ156: 0.1095236921
B157: 2013-05-19 | C157: 139 | D157: 374.6784202 | E157: -124.3215798 | G157: -124.3215798 | Q157: 0 | AJ157: 0.1095236921
B158: 2013-05-20 | C158: 140 | D158: 373.8879334 | E158: -125.1120666 | G158: -125.1120666 | Q158: 0 | AJ158: 0.1095236921
B159: 2013-05-21 | C159: 141 | D159: 373.1174401 | E159: -125.8825599 | G159: -125.8825599 | Q159: 0 | AJ159: 0.1095236921
B160: 2013-05-22 | C160: 142 | D160: 372.3668234 | E160: -126.6331766 | G160: -126.6331766 | Q160: 0 | AJ160: 0.1095236921
B161: 2013-05-23 | C161: 143 | D161: 371.6359698 | E161: -127.3640302 | G161: -127.3640302 | Q161: 0 | AJ161: 0.1095236921
B162: 2013-05-24 | C162: 144 | D162: 370.9247686 | E162: -128.0752314 | G162: -128.0752314 | Q162: 0 | AJ162: 0.1095236921
B163: 2013-05-25 | C163: 145 | D163: 370.2331125 | E163: -128.7668875 | G163: -128.7668875 | Q163: 0 | AJ163: 0.1095236921
B164: 2013-05-26 | C164: 146 | D164: 369.5608971 | E164: -129.4391029 | G164: -129.4391029 | Q164: 0 | AJ164: 0.1095236921
B165: 2013-05-27 | C165: 147 | D165: 368.9080212 | E165: -130.0919788 | G165: -130.0919788 | Q165: 0 | AJ165: 0.1095236921
B166: 2013-05-28 | C166: 148 | D166: 368.2743866 | E166: -130.7256134 | G166: -130.7256134 | Q166: 0 | AJ166: 0.1095236921
B167: 2013-05-29 | C167: 149 | D167: 367.6598979 | E167: -131.3401021 | G167: -131.3401021 | Q167: 0 | AJ167: 0.1095236921
B168: 2013-05-30 | C168: 150 | D168: 367.064463 | E168: -131.935537 | G168: -131.935537 | Q168: 0 | AJ168: 0.1095236921
B169: 2013-05-31 | C169: 151 | D169: 366.4879925 | E169: -132.5120075 | G169: -132.5120075 | Q169: 0 | AJ169: 0.1095236921
B170: 2013-06-01 | C170: 152 | D170: 365.9304001 | E170: -133.0695999 | G170: -133.0695999 | Q170: 0 | AJ170: 0.1095236921
B171: 2013-06-02 | C171: 153 | D171: 365.3916023 | E171: -133.6083977 | G171: -133.6083977 | Q171: 0 | AJ171: 0.1095236921
B172: 2013-06-03 | C172: 154 | D172: 364.8715185 | E172: -134.1284815 | G172: -134.1284815 | Q172: 0 | AJ172: 0.1095236921
B173: 2013-06-04 | C173: 155 | D173: 364.3700711 | E173: -134.6299289 | G173: -134.6299289 | Q173: 0 | AJ173: 0.1095236921
B174: 2013-06-05 | C174: 156 | D174: 363.8871852 | E174: -135.1128148 | G174: -135.1128148 | Q174: 0 | AJ174: 0.1095236921
B175: 2013-06-06 | C175: 157 | D175: 363.4227888 | E175: -135.5772112 | G175: -135.5772112 | Q175: 0 | AJ175: 0.1095236921
B176: 2013-06-07 | C176: 158 | D176: 362.9768127 | E176: -136.0231873 | G176: -136.0231873 | Q176: 0 | AJ176: 0.1095236921
B177: 2013-06-08 | C177: 159 | D177: 362.5491906 | E177: -136.4508094 | G177: -136.4508094 | Q177: 0 | AJ177: 0.1095236921
B178: 2013-06-09 | C178: 160 | D178: 362.1398587 | E178: -136.8601413 | G178: -136.8601413 | Q178: 0 | AJ178: 0.1095236921
B179: 2013-06-10 | C179: 161 | D179: 361.7487564 | E179: -137.2512436 | G179: -137.2512436 | Q179: 0 | AJ179: 0.1095236921
B180: 2013-06-11 | C180: 162 | D180: 361.3758255 | E180: -137.6241745 | G180: -137.6241745 | Q180: 0 | AJ180: 0.1095236921
B181: 2013-06-12 | C181: 163 | D181: 361.0210106 | E181: -137.9789894 | G181: -137.9789894 | Q181: 0 | AJ181: 0.1095236921
B182: 2013-06-13 | C182: 164 | D182: 360.6842592 | E182: -138.3157408 | G182: -138.3157408 | Q182: 0 | AJ182: 0.1095236921
B183: 2013-06-14 | C183: 165 | D183: 360.3655213 | E183: -138.6344787 | G183: -138.6344787 | Q183: 0 | AJ183: 0.1095236921
B184: 2013-06-15 | C184: 166 | D184: 360.0647496 | E184: -138.9352504 | G184: -138.9352504 | Q184: 0 | AJ184: 0.1095236921
B185: 2013-06-16 | C185: 167 | D185: 359.7818998 | E185: -139.2181002 | G185: -139.2181002 | Q185: 0 | AJ185: 0.1095236921
B186: 2013-06-17 | C186: 168 | D186: 359.5169298 | E186: -139.4830702 | G186: -139.4830702 | Q186: 0 | AJ186: 0.1095236921
B187: 2013-06-18 | C187: 169 | D187: 359.2698006 | E187: -139.7301994 | G187: -139.7301994 | Q187: 0 | AJ187: 0.1095236921
B188: 2013-06-19 | C188: 170 | D188: 359.0404756 | E188: -139.9595244 | G188: -139.9595244 | Q188: 0 | AJ188: 0.1095236921
B189: 2013-06-20 | C189: 171 | D189: 358.8289209 | E189: -140.1710791 | G189: -140.1710791 | Q189: 0 | AJ189: 0.1095236921
B190: 2013-06-21 | C190: 172 | D190: 358.6351053 | E190: -140.3648947 | G190: -140.3648947 | Q190: 0 | AJ190: 0.1095236921
B191: 2013-06-22 | C191: 173 | D191: 358.4590001 | E191: -140.5409999 | G191: -140.5409999 | Q191: 0 | AJ191: 0.1095236921
B192: 2013-06-23 | C192: 174 | D192: 358.3005793 | E192: -140.6994207 | G192: -140.6994207 | Q192: 0 | AJ192: 0.1095236921
B193: 2013-06-24 | C193: 175 | D193: 358.1598197 | E193: -140.8401803 | G193: -140.8401803 | Q193: 0 | AJ193: 0.1095236921
B194: 2013-06-25 | C194: 176 | D194: 358.0367004 | E194: -140.9632996 | G194: -140.9632996 | Q194: 0 | AJ194: 0.1095236921
B195: 2013-06-26 | C195: 177 | D195: 357.9312032 | E195: -141.0687968 | G195: -141.0687968 | Q195: 0 | AJ195: 0.1095236921
B196: 2013-06-27 | C196: 178 | D196: 357.8433126 | E196: -141.1566874 | G196: -141.1566874 | Q196: 0 | AJ196: 0.1095236921
B197: 2013-06-28 | C197: 179 | D197: 357.7730157 | E197: -141.2269843 | G197: -141.2269843 | Q197: 0 | AJ197: 0.1095236921
B198: 2013-06-29 | C198: 180 | D198: 357.7203021 | E198: -141.2796979 | G198: -141.2796979 | Q198: 0 | AJ198: 0.1095236921
B199: 2013-06-30 | C199: 181 | D199: 357.685164 | E199: -141.314836 | G199: -141.314836 | Q199: 0 | AJ199: 0.1095236921
B200: 2013-07-01 | C200: 182 | D200: 357.6675962 | E200: -141.3324038 | G200: -141.3324038 | Q200: 0 | AJ200: 0.1095236921
B201: 2013-07-02 | C201: 183 | D201: 357.6675962 | E201: -141.3324038 | G201: -141.3324038 | Q201: 0 | V201: =V200+($V$18/(365/2)) ->  | AJ201: 0.1095236921
B202: 2013-07-03 | C202: 184 | D202: 357.685164 | E202: -141.314836 | G202: -141.314836 | Q202: 0 | V202: =V201-($V$18/(365/2)) ->  | AJ202: 0.1095236921
B203: 2013-07-04 | C203: 185 | D203: 357.7203021 | E203: -141.2796979 | G203: -141.2796979 | Q203: 0 | V203: =V202-($V$18/(365/2)) ->  | AJ203: 0.1095236921
... 180 more rows
